{"text_format":"3","workbook":"xlsx","n_sheets":3,"sheets":["Ütemtervadatok","Agile-ütemterv","Névjegy"],"not_rendered":{"defined_names":5},"read":"whole","date_system":"1900"}

{"sheet":"Ütemtervadatok","index":0,"n_rows":13,"n_cols":7,"rows_kept":13,"merged":[[12,1,12,4]]}
["Fontos mérföldköveket vagy tevékenységeket megadva a jelen munkalap Ütemtervadatok táblázatában Agile-ütemterv hozhat létre.\nA B1 cellában szerepel a munkalap címe. \nA Névjegy munkalapon találhatók a munkalap használatára vonatkozó információk, beleértve a képernyőolvasók utasításait.\nTovábbi utasításokat az „A” oszlopban lefelé navigálva talál.","Agile-ütemtervadatok"]
["A táblázatfejlécek a B2-E2 cellatartományban vannak. A fejlécszűrőkkel rendezheti a táblázatot, és elemeket kereshet.\nAz Agile-ütemterv akkor a leghatékonyabb, ha a táblázat először prioritás szerint növekvő sorrendben, majd mérföldkő vagy tevékenység szerint van szűrve.\nA mintaadatok az Ütemtervadatok táblázatban szerepelnek a B3-E12 cellatartományban. \nAmikor teljesül egy mérföldkő vagy tevékenység, frissítse a kapcsolódó Eredmény mezőt, hogy az eredmények megjelenjenek az Agile-ütemterv munkalapon. Ha beírja a „Nincs változás” kifejezést, azzal kiemeli azokat a mérföldköveket, amelyek nem okoztak változást.\nLépjen az A13 cellába a következő utasításért.\n","Cél","Mérföldkő vagy tevékenység","Prioritás","Eredmény",null,"< – rendezze a táblázatot prioritás és mérföldkő vagy tevékenység szerint növekvő sorrendben"]
[null,"Aktuális","1. tevékenység\nPrototípus készítése","1 – Magas",null,null,"< – adjon meg eredményt az összes teljesített mérföldkőhöz. Ha beírja a „Nincs változás” kifejezést, azzal kiemeli azokat a mérföldköveket, amelyek nem okoztak változást."]
[null,"Közeljövőbeli","2. tevékenység\nDemó prototípus","1 – Magas"]
[null,"Aktuális","6. tevékenység","1 – Magas"]
[null,"Jövőbeli","7. tevékenység\nKiszervezett fejlesztés az első fázis megvalósításában","1 – Magas"]
[null,"Kész","9. tevékenység\nAz első fázis jóváhagyva","1 – Magas","10 százalékos csökkenés"]
[null,"Jövőbeli","10. tevékenység","2 – Közepes"]
[null,"Közeljövőbeli","8. tevékenység","2 – Közepes"]
[null,"Kész","3. tevékenység","3 – Alacsony","Nincs változás"]
[null,"Jövőbeli","4. tevékenység","3 – Alacsony"]
[null,"Aktuális","5. tevékenység","3 – Alacsony"]
["Új elemek hozzáadásához szúrjon be új sorokat a táblázatba ezen vonal fölé.\nEzen a munkalapon ez az utolsó utasítás.","Új elemek hozzáadásához szúrjon be új sorokat ezen vonal fölé."]

{"sheet":"Agile-ütemterv","index":1,"n_rows":100,"n_cols":8,"rows_kept":100}
["Ezen a munkalapon egy Agile-ütemterv található, amely az Ütemtervadatok munkalapon szereplő mérföldköveket és tevékenységeket jeleníti meg. \nA cím a B1 cellában található. \nAzok az eredmények, amelyeknél a „Nincs változás” kifejezés szerepel, világos narancssárga színnel vannak jelölve: rgb(255, 230, 210)\nA teljesített mérföldkövek vagy tevékenységek világoszöld színűek: rgb(237,251,219).","Agile-ütemterv"]
["A diagramfejlécek a B2, D2, F2, H2 cellákban találhatók. A tartalmuk: Kész, Aktuális, Közeljövőbeli és Jövőbeli. Ezeket a fejléceket szerkesztve módosíthatja az Ütemtervadatok munkalap Ütemtervadatok táblázatának Cél értékeit.\nAz ebben a sorban szereplő fejlécek mérföldkövei és tevékenységei a B3-H20 cellatartományban szerepelnek. \nA mérföldköveket és a tevékenységeket az Ütemtervadatok munkalapon kell létrehozni.\nEzen a munkalapon NE módosítsa vagy törölje a bejegyzéseket. Ha módosítani szeretné ennek a munkalapnak a tartalmát, akkor az Ütemtervadatok táblázatot szerkessze az Ütemtervadatok munkalapon.\nEzen a munkalapon ez az utolsó utasítás.","Kész",null,"Aktuális",null,"Közeljövőbeli",null,"Jövőbeli"]
[null,{"$f":"IFERROR(INDEX(Tevékenység,SMALL(IF(Cél=$B$2,ROW(Tevékenység)-MIN(ROW(Tevékenység))+1),ROWS($B$3:B3)))&\" \"&CHAR(10)&(INDEX(Eredmény,SMALL(IF(Cél=$B$2,ROW(Eredmény)-MIN(ROW(Eredmény))+1),ROWS($B$3:B3))))&CHAR(10),\"\")","v":"9. tevékenység\nAz első fázis jóváhagyva \n10 százalékos csökkenés\n"},null,{"$f":"IFERROR(INDEX(Tevékenység,SMALL(IF(Cél=$D$2,ROW(Tevékenység)-MIN(ROW(Tevékenység))+1),ROWS($B$3:B3)))&CHAR(10),\"\")","v":"1. tevékenység\nPrototípus készítése\n"},null,{"$f":"IFERROR(INDEX(Tevékenység,SMALL(IF(Cél=$F$2,ROW(Tevékenység)-MIN(ROW(Tevékenység))+1),ROWS($B$3:B3)))&CHAR(10),\"\")","v":"2. tevékenység\nDemó prototípus\n"},null,{"$f":"IFERROR(INDEX(Tevékenység,SMALL(IF(Cél=$H$2,ROW(Tevékenység)-MIN(ROW(Tevékenység))+1),ROWS($B$3:B3)))&CHAR(10),\"\")","v":"7. tevékenység\nKiszervezett fejlesztés az első fázis megvalósításában\n"}]
[null,{"$f":"IFERROR(INDEX(Tevékenység,SMALL(IF(Cél=$B$2,ROW(Tevékenység)-MIN(ROW(Tevékenység))+1),ROWS($B$3:B4)))&\" \"&CHAR(10)&(INDEX(Eredmény,SMALL(IF(Cél=$B$2,ROW(Eredmény)-MIN(ROW(Eredmény))+1),ROWS($B$3:B4))))&CHAR(10),\"\")","v":"3. tevékenység \nNincs változás\n"},null,{"$f":"IFERROR(INDEX(Tevékenység,SMALL(IF(Cél=$D$2,ROW(Tevékenység)-MIN(ROW(Tevékenység))+1),ROWS($B$3:B4)))&CHAR(10),\"\")","v":"6. tevékenység\n"},null,{"$f":"IFERROR(INDEX(Tevékenység,SMALL(IF(Cél=$F$2,ROW(Tevékenység)-MIN(ROW(Tevékenység))+1),ROWS($B$3:B4)))&CHAR(10),\"\")","v":"8. tevékenység\n"},null,{"$f":"IFERROR(INDEX(Tevékenység,SMALL(IF(Cél=$H$2,ROW(Tevékenység)-MIN(ROW(Tevékenység))+1),ROWS($B$3:B4)))&CHAR(10),\"\")","v":"10. tevékenység\n"}]
[null,{"$f":"IFERROR(INDEX(Tevékenység,SMALL(IF(Cél=$B$2,ROW(Tevékenység)-MIN(ROW(Tevékenység))+1),ROWS($B$3:B5)))&\" \"&CHAR(10)&(INDEX(Eredmény,SMALL(IF(Cél=$B$2,ROW(Eredmény)-MIN(ROW(Eredmény))+1),ROWS($B$3:B5))))&CHAR(10),\"\")","v":""},null,{"$f":"IFERROR(INDEX(Tevékenység,SMALL(IF(Cél=$D$2,ROW(Tevékenység)-MIN(ROW(Tevékenység))+1),ROWS($B$3:B5)))&CHAR(10),\"\")","v":"5. tevékenység\n"},null,{"$f":"IFERROR(INDEX(Tevékenység,SMALL(IF(Cél=$F$2,ROW(Tevékenység)-MIN(ROW(Tevékenység))+1),ROWS($B$3:B5)))&CHAR(10),\"\")","v":""},null,{"$f":"IFERROR(INDEX(Tevékenység,SMALL(IF(Cél=$H$2,ROW(Tevékenység)-MIN(ROW(Tevékenység))+1),ROWS($B$3:B5)))&CHAR(10),\"\")","v":"4. tevékenység\n"}]
[null,{"$f":"IFERROR(INDEX(Tevékenység,SMALL(IF(Cél=$B$2,ROW(Tevékenység)-MIN(ROW(Tevékenység))+1),ROWS($B$3:B6)))&\" \"&CHAR(10)&(INDEX(Eredmény,SMALL(IF(Cél=$B$2,ROW(Eredmény)-MIN(ROW(Eredmény))+1),ROWS($B$3:B6))))&CHAR(10),\"\")","v":""},null,{"$f":"IFERROR(INDEX(Tevékenység,SMALL(IF(Cél=$D$2,ROW(Tevékenység)-MIN(ROW(Tevékenység))+1),ROWS($B$3:B6)))&CHAR(10),\"\")","v":""},null,{"$f":"IFERROR(INDEX(Tevékenység,SMALL(IF(Cél=$F$2,ROW(Tevékenység)-MIN(ROW(Tevékenység))+1),ROWS($B$3:B6)))&CHAR(10),\"\")","v":""},null,{"$f":"IFERROR(INDEX(Tevékenység,SMALL(IF(Cél=$H$2,ROW(Tevékenység)-MIN(ROW(Tevékenység))+1),ROWS($B$3:B6)))&CHAR(10),\"\")","v":""}]
[null,{"$f":"IFERROR(INDEX(Tevékenység,SMALL(IF(Cél=$B$2,ROW(Tevékenység)-MIN(ROW(Tevékenység))+1),ROWS($B$3:B7)))&\" \"&CHAR(10)&(INDEX(Eredmény,SMALL(IF(Cél=$B$2,ROW(Eredmény)-MIN(ROW(Eredmény))+1),ROWS($B$3:B7))))&CHAR(10),\"\")","v":""},null,{"$f":"IFERROR(INDEX(Tevékenység,SMALL(IF(Cél=$D$2,ROW(Tevékenység)-MIN(ROW(Tevékenység))+1),ROWS($B$3:B7)))&CHAR(10),\"\")","v":""},null,{"$f":"IFERROR(INDEX(Tevékenység,SMALL(IF(Cél=$F$2,ROW(Tevékenység)-MIN(ROW(Tevékenység))+1),ROWS($B$3:B7)))&CHAR(10),\"\")","v":""},null,{"$f":"IFERROR(INDEX(Tevékenység,SMALL(IF(Cél=$H$2,ROW(Tevékenység)-MIN(ROW(Tevékenység))+1),ROWS($B$3:B7)))&CHAR(10),\"\")","v":""}]
[null,{"$f":"IFERROR(INDEX(Tevékenység,SMALL(IF(Cél=$B$2,ROW(Tevékenység)-MIN(ROW(Tevékenység))+1),ROWS($B$3:B8)))&\" \"&CHAR(10)&(INDEX(Eredmény,SMALL(IF(Cél=$B$2,ROW(Eredmény)-MIN(ROW(Eredmény))+1),ROWS($B$3:B8))))&CHAR(10),\"\")","v":""},null,{"$f":"IFERROR(INDEX(Tevékenység,SMALL(IF(Cél=$D$2,ROW(Tevékenység)-MIN(ROW(Tevékenység))+1),ROWS($B$3:B8)))&CHAR(10),\"\")","v":""},null,{"$f":"IFERROR(INDEX(Tevékenység,SMALL(IF(Cél=$F$2,ROW(Tevékenység)-MIN(ROW(Tevékenység))+1),ROWS($B$3:B8)))&CHAR(10),\"\")","v":""},null,{"$f":"IFERROR(INDEX(Tevékenység,SMALL(IF(Cél=$H$2,ROW(Tevékenység)-MIN(ROW(Tevékenység))+1),ROWS($B$3:B8)))&CHAR(10),\"\")","v":""}]
[null,{"$f":"IFERROR(INDEX(Tevékenység,SMALL(IF(Cél=$B$2,ROW(Tevékenység)-MIN(ROW(Tevékenység))+1),ROWS($B$3:B9)))&\" \"&CHAR(10)&(INDEX(Eredmény,SMALL(IF(Cél=$B$2,ROW(Eredmény)-MIN(ROW(Eredmény))+1),ROWS($B$3:B9))))&CHAR(10),\"\")","v":""},null,{"$f":"IFERROR(INDEX(Tevékenység,SMALL(IF(Cél=$D$2,ROW(Tevékenység)-MIN(ROW(Tevékenység))+1),ROWS($B$3:B9)))&CHAR(10),\"\")","v":""},null,{"$f":"IFERROR(INDEX(Tevékenység,SMALL(IF(Cél=$F$2,ROW(Tevékenység)-MIN(ROW(Tevékenység))+1),ROWS($B$3:B9)))&CHAR(10),\"\")","v":""},null,{"$f":"IFERROR(INDEX(Tevékenység,SMALL(IF(Cél=$H$2,ROW(Tevékenység)-MIN(ROW(Tevékenység))+1),ROWS($B$3:B9)))&CHAR(10),\"\")","v":""}]
[null,{"$f":"IFERROR(INDEX(Tevékenység,SMALL(IF(Cél=$B$2,ROW(Tevékenység)-MIN(ROW(Tevékenység))+1),ROWS($B$3:B10)))&\" \"&CHAR(10)&(INDEX(Eredmény,SMALL(IF(Cél=$B$2,ROW(Eredmény)-MIN(ROW(Eredmény))+1),ROWS($B$3:B10))))&CHAR(10),\"\")","v":""},null,{"$f":"IFERROR(INDEX(Tevékenység,SMALL(IF(Cél=$D$2,ROW(Tevékenység)-MIN(ROW(Tevékenység))+1),ROWS($B$3:B10)))&CHAR(10),\"\")","v":""},null,{"$f":"IFERROR(INDEX(Tevékenység,SMALL(IF(Cél=$F$2,ROW(Tevékenység)-MIN(ROW(Tevékenység))+1),ROWS($B$3:B10)))&CHAR(10),\"\")","v":""},null,{"$f":"IFERROR(INDEX(Tevékenység,SMALL(IF(Cél=$H$2,ROW(Tevékenység)-MIN(ROW(Tevékenység))+1),ROWS($B$3:B10)))&CHAR(10),\"\")","v":""}]
[null,{"$f":"IFERROR(INDEX(Tevékenység,SMALL(IF(Cél=$B$2,ROW(Tevékenység)-MIN(ROW(Tevékenység))+1),ROWS($B$3:B11)))&\" \"&CHAR(10)&(INDEX(Eredmény,SMALL(IF(Cél=$B$2,ROW(Eredmény)-MIN(ROW(Eredmény))+1),ROWS($B$3:B11))))&CHAR(10),\"\")","v":""},null,{"$f":"IFERROR(INDEX(Tevékenység,SMALL(IF(Cél=$D$2,ROW(Tevékenység)-MIN(ROW(Tevékenység))+1),ROWS($B$3:B11)))&CHAR(10),\"\")","v":""},null,{"$f":"IFERROR(INDEX(Tevékenység,SMALL(IF(Cél=$F$2,ROW(Tevékenység)-MIN(ROW(Tevékenység))+1),ROWS($B$3:B11)))&CHAR(10),\"\")","v":""},null,{"$f":"IFERROR(INDEX(Tevékenység,SMALL(IF(Cél=$H$2,ROW(Tevékenység)-MIN(ROW(Tevékenység))+1),ROWS($B$3:B11)))&CHAR(10),\"\")","v":""}]
[null,{"$f":"IFERROR(INDEX(Tevékenység,SMALL(IF(Cél=$B$2,ROW(Tevékenység)-MIN(ROW(Tevékenység))+1),ROWS($B$3:B12)))&\" \"&CHAR(10)&(INDEX(Eredmény,SMALL(IF(Cél=$B$2,ROW(Eredmény)-MIN(ROW(Eredmény))+1),ROWS($B$3:B12))))&CHAR(10),\"\")","v":""},null,{"$f":"IFERROR(INDEX(Tevékenység,SMALL(IF(Cél=$D$2,ROW(Tevékenység)-MIN(ROW(Tevékenység))+1),ROWS($B$3:B12)))&CHAR(10),\"\")","v":""},null,{"$f":"IFERROR(INDEX(Tevékenység,SMALL(IF(Cél=$F$2,ROW(Tevékenység)-MIN(ROW(Tevékenység))+1),ROWS($B$3:B12)))&CHAR(10),\"\")","v":""},null,{"$f":"IFERROR(INDEX(Tevékenység,SMALL(IF(Cél=$H$2,ROW(Tevékenység)-MIN(ROW(Tevékenység))+1),ROWS($B$3:B12)))&CHAR(10),\"\")","v":""}]
[null,{"$f":"IFERROR(INDEX(Tevékenység,SMALL(IF(Cél=$B$2,ROW(Tevékenység)-MIN(ROW(Tevékenység))+1),ROWS($B$3:B13)))&\" \"&CHAR(10)&(INDEX(Eredmény,SMALL(IF(Cél=$B$2,ROW(Eredmény)-MIN(ROW(Eredmény))+1),ROWS($B$3:B13))))&CHAR(10),\"\")","v":""},null,{"$f":"IFERROR(INDEX(Tevékenység,SMALL(IF(Cél=$D$2,ROW(Tevékenység)-MIN(ROW(Tevékenység))+1),ROWS($B$3:B13)))&CHAR(10),\"\")","v":""},null,{"$f":"IFERROR(INDEX(Tevékenység,SMALL(IF(Cél=$F$2,ROW(Tevékenység)-MIN(ROW(Tevékenység))+1),ROWS($B$3:B13)))&CHAR(10),\"\")","v":""},null,{"$f":"IFERROR(INDEX(Tevékenység,SMALL(IF(Cél=$H$2,ROW(Tevékenység)-MIN(ROW(Tevékenység))+1),ROWS($B$3:B13)))&CHAR(10),\"\")","v":""}]
[null,{"$f":"IFERROR(INDEX(Tevékenység,SMALL(IF(Cél=$B$2,ROW(Tevékenység)-MIN(ROW(Tevékenység))+1),ROWS($B$3:B14)))&\" \"&CHAR(10)&(INDEX(Eredmény,SMALL(IF(Cél=$B$2,ROW(Eredmény)-MIN(ROW(Eredmény))+1),ROWS($B$3:B14))))&CHAR(10),\"\")","v":""},null,{"$f":"IFERROR(INDEX(Tevékenység,SMALL(IF(Cél=$D$2,ROW(Tevékenység)-MIN(ROW(Tevékenység))+1),ROWS($B$3:B14)))&CHAR(10),\"\")","v":""},null,{"$f":"IFERROR(INDEX(Tevékenység,SMALL(IF(Cél=$F$2,ROW(Tevékenység)-MIN(ROW(Tevékenység))+1),ROWS($B$3:B14)))&CHAR(10),\"\")","v":""},null,{"$f":"IFERROR(INDEX(Tevékenység,SMALL(IF(Cél=$H$2,ROW(Tevékenység)-MIN(ROW(Tevékenység))+1),ROWS($B$3:B14)))&CHAR(10),\"\")","v":""}]
[null,{"$f":"IFERROR(INDEX(Tevékenység,SMALL(IF(Cél=$B$2,ROW(Tevékenység)-MIN(ROW(Tevékenység))+1),ROWS($B$3:B15)))&\" \"&CHAR(10)&(INDEX(Eredmény,SMALL(IF(Cél=$B$2,ROW(Eredmény)-MIN(ROW(Eredmény))+1),ROWS($B$3:B15))))&CHAR(10),\"\")","v":""},null,{"$f":"IFERROR(INDEX(Tevékenység,SMALL(IF(Cél=$D$2,ROW(Tevékenység)-MIN(ROW(Tevékenység))+1),ROWS($B$3:B15)))&CHAR(10),\"\")","v":""},null,{"$f":"IFERROR(INDEX(Tevékenység,SMALL(IF(Cél=$F$2,ROW(Tevékenység)-MIN(ROW(Tevékenység))+1),ROWS($B$3:B15)))&CHAR(10),\"\")","v":""},null,{"$f":"IFERROR(INDEX(Tevékenység,SMALL(IF(Cél=$H$2,ROW(Tevékenység)-MIN(ROW(Tevékenység))+1),ROWS($B$3:B15)))&CHAR(10),\"\")","v":""}]
[null,{"$f":"IFERROR(INDEX(Tevékenység,SMALL(IF(Cél=$B$2,ROW(Tevékenység)-MIN(ROW(Tevékenység))+1),ROWS($B$3:B16)))&\" \"&CHAR(10)&(INDEX(Eredmény,SMALL(IF(Cél=$B$2,ROW(Eredmény)-MIN(ROW(Eredmény))+1),ROWS($B$3:B16))))&CHAR(10),\"\")","v":""},null,{"$f":"IFERROR(INDEX(Tevékenység,SMALL(IF(Cél=$D$2,ROW(Tevékenység)-MIN(ROW(Tevékenység))+1),ROWS($B$3:B16)))&CHAR(10),\"\")","v":""},null,{"$f":"IFERROR(INDEX(Tevékenység,SMALL(IF(Cél=$F$2,ROW(Tevékenység)-MIN(ROW(Tevékenység))+1),ROWS($B$3:B16)))&CHAR(10),\"\")","v":""},null,{"$f":"IFERROR(INDEX(Tevékenység,SMALL(IF(Cél=$H$2,ROW(Tevékenység)-MIN(ROW(Tevékenység))+1),ROWS($B$3:B16)))&CHAR(10),\"\")","v":""}]
[null,{"$f":"IFERROR(INDEX(Tevékenység,SMALL(IF(Cél=$B$2,ROW(Tevékenység)-MIN(ROW(Tevékenység))+1),ROWS($B$3:B17)))&\" \"&CHAR(10)&(INDEX(Eredmény,SMALL(IF(Cél=$B$2,ROW(Eredmény)-MIN(ROW(Eredmény))+1),ROWS($B$3:B17))))&CHAR(10),\"\")","v":""},null,{"$f":"IFERROR(INDEX(Tevékenység,SMALL(IF(Cél=$D$2,ROW(Tevékenység)-MIN(ROW(Tevékenység))+1),ROWS($B$3:B17)))&CHAR(10),\"\")","v":""},null,{"$f":"IFERROR(INDEX(Tevékenység,SMALL(IF(Cél=$F$2,ROW(Tevékenység)-MIN(ROW(Tevékenység))+1),ROWS($B$3:B17)))&CHAR(10),\"\")","v":""},null,{"$f":"IFERROR(INDEX(Tevékenység,SMALL(IF(Cél=$H$2,ROW(Tevékenység)-MIN(ROW(Tevékenység))+1),ROWS($B$3:B17)))&CHAR(10),\"\")","v":""}]
[null,{"$f":"IFERROR(INDEX(Tevékenység,SMALL(IF(Cél=$B$2,ROW(Tevékenység)-MIN(ROW(Tevékenység))+1),ROWS($B$3:B18)))&\" \"&CHAR(10)&(INDEX(Eredmény,SMALL(IF(Cél=$B$2,ROW(Eredmény)-MIN(ROW(Eredmény))+1),ROWS($B$3:B18))))&CHAR(10),\"\")","v":""},null,{"$f":"IFERROR(INDEX(Tevékenység,SMALL(IF(Cél=$D$2,ROW(Tevékenység)-MIN(ROW(Tevékenység))+1),ROWS($B$3:B18)))&CHAR(10),\"\")","v":""},null,{"$f":"IFERROR(INDEX(Tevékenység,SMALL(IF(Cél=$F$2,ROW(Tevékenység)-MIN(ROW(Tevékenység))+1),ROWS($B$3:B18)))&CHAR(10),\"\")","v":""},null,{"$f":"IFERROR(INDEX(Tevékenység,SMALL(IF(Cél=$H$2,ROW(Tevékenység)-MIN(ROW(Tevékenység))+1),ROWS($B$3:B18)))&CHAR(10),\"\")","v":""}]
[null,{"$f":"IFERROR(INDEX(Tevékenység,SMALL(IF(Cél=$B$2,ROW(Tevékenység)-MIN(ROW(Tevékenység))+1),ROWS($B$3:B19)))&\" \"&CHAR(10)&(INDEX(Eredmény,SMALL(IF(Cél=$B$2,ROW(Eredmény)-MIN(ROW(Eredmény))+1),ROWS($B$3:B19))))&CHAR(10),\"\")","v":""},null,{"$f":"IFERROR(INDEX(Tevékenység,SMALL(IF(Cél=$D$2,ROW(Tevékenység)-MIN(ROW(Tevékenység))+1),ROWS($B$3:B19)))&CHAR(10),\"\")","v":""},null,{"$f":"IFERROR(INDEX(Tevékenység,SMALL(IF(Cél=$F$2,ROW(Tevékenység)-MIN(ROW(Tevékenység))+1),ROWS($B$3:B19)))&CHAR(10),\"\")","v":""},null,{"$f":"IFERROR(INDEX(Tevékenység,SMALL(IF(Cél=$H$2,ROW(Tevékenység)-MIN(ROW(Tevékenység))+1),ROWS($B$3:B19)))&CHAR(10),\"\")","v":""}]
[null,{"$f":"IFERROR(INDEX(Tevékenység,SMALL(IF(Cél=$B$2,ROW(Tevékenység)-MIN(ROW(Tevékenység))+1),ROWS($B$3:B20)))&\" \"&CHAR(10)&(INDEX(Eredmény,SMALL(IF(Cél=$B$2,ROW(Eredmény)-MIN(ROW(Eredmény))+1),ROWS($B$3:B20))))&CHAR(10),\"\")","v":""},null,{"$f":"IFERROR(INDEX(Tevékenység,SMALL(IF(Cél=$D$2,ROW(Tevékenység)-MIN(ROW(Tevékenység))+1),ROWS($B$3:B20)))&CHAR(10),\"\")","v":""},null,{"$f":"IFERROR(INDEX(Tevékenység,SMALL(IF(Cél=$F$2,ROW(Tevékenység)-MIN(ROW(Tevékenység))+1),ROWS($B$3:B20)))&CHAR(10),\"\")","v":""},null,{"$f":"IFERROR(INDEX(Tevékenység,SMALL(IF(Cél=$H$2,ROW(Tevékenység)-MIN(ROW(Tevékenység))+1),ROWS($B$3:B20)))&CHAR(10),\"\")","v":""}]
[null,{"$f":"IFERROR(INDEX(Tevékenység,SMALL(IF(Cél=$B$2,ROW(Tevékenység)-MIN(ROW(Tevékenység))+1),ROWS($B$3:B21)))&\" \"&CHAR(10)&(INDEX(Eredmény,SMALL(IF(Cél=$B$2,ROW(Eredmény)-MIN(ROW(Eredmény))+1),ROWS($B$3:B21))))&CHAR(10),\"\")","v":""},null,{"$f":"IFERROR(INDEX(Tevékenység,SMALL(IF(Cél=$D$2,ROW(Tevékenység)-MIN(ROW(Tevékenység))+1),ROWS($B$3:B21)))&CHAR(10),\"\")","v":""},null,{"$f":"IFERROR(INDEX(Tevékenység,SMALL(IF(Cél=$F$2,ROW(Tevékenység)-MIN(ROW(Tevékenység))+1),ROWS($B$3:B21)))&CHAR(10),\"\")","v":""},null,{"$f":"IFERROR(INDEX(Tevékenység,SMALL(IF(Cél=$H$2,ROW(Tevékenység)-MIN(ROW(Tevékenység))+1),ROWS($B$3:B21)))&CHAR(10),\"\")","v":""}]
[null,{"$f":"IFERROR(INDEX(Tevékenység,SMALL(IF(Cél=$B$2,ROW(Tevékenység)-MIN(ROW(Tevékenység))+1),ROWS($B$3:B22)))&\" \"&CHAR(10)&(INDEX(Eredmény,SMALL(IF(Cél=$B$2,ROW(Eredmény)-MIN(ROW(Eredmény))+1),ROWS($B$3:B22))))&CHAR(10),\"\")","v":""},null,{"$f":"IFERROR(INDEX(Tevékenység,SMALL(IF(Cél=$D$2,ROW(Tevékenység)-MIN(ROW(Tevékenység))+1),ROWS($B$3:B22)))&CHAR(10),\"\")","v":""},null,{"$f":"IFERROR(INDEX(Tevékenység,SMALL(IF(Cél=$F$2,ROW(Tevékenység)-MIN(ROW(Tevékenység))+1),ROWS($B$3:B22)))&CHAR(10),\"\")","v":""},null,{"$f":"IFERROR(INDEX(Tevékenység,SMALL(IF(Cél=$H$2,ROW(Tevékenység)-MIN(ROW(Tevékenység))+1),ROWS($B$3:B22)))&CHAR(10),\"\")","v":""}]
[null,{"$f":"IFERROR(INDEX(Tevékenység,SMALL(IF(Cél=$B$2,ROW(Tevékenység)-MIN(ROW(Tevékenység))+1),ROWS($B$3:B23)))&\" \"&CHAR(10)&(INDEX(Eredmény,SMALL(IF(Cél=$B$2,ROW(Eredmény)-MIN(ROW(Eredmény))+1),ROWS($B$3:B23))))&CHAR(10),\"\")","v":""},null,{"$f":"IFERROR(INDEX(Tevékenység,SMALL(IF(Cél=$D$2,ROW(Tevékenység)-MIN(ROW(Tevékenység))+1),ROWS($B$3:B23)))&CHAR(10),\"\")","v":""},null,{"$f":"IFERROR(INDEX(Tevékenység,SMALL(IF(Cél=$F$2,ROW(Tevékenység)-MIN(ROW(Tevékenység))+1),ROWS($B$3:B23)))&CHAR(10),\"\")","v":""},null,{"$f":"IFERROR(INDEX(Tevékenység,SMALL(IF(Cél=$H$2,ROW(Tevékenység)-MIN(ROW(Tevékenység))+1),ROWS($B$3:B23)))&CHAR(10),\"\")","v":""}]
[null,{"$f":"IFERROR(INDEX(Tevékenység,SMALL(IF(Cél=$B$2,ROW(Tevékenység)-MIN(ROW(Tevékenység))+1),ROWS($B$3:B24)))&\" \"&CHAR(10)&(INDEX(Eredmény,SMALL(IF(Cél=$B$2,ROW(Eredmény)-MIN(ROW(Eredmény))+1),ROWS($B$3:B24))))&CHAR(10),\"\")","v":""},null,{"$f":"IFERROR(INDEX(Tevékenység,SMALL(IF(Cél=$D$2,ROW(Tevékenység)-MIN(ROW(Tevékenység))+1),ROWS($B$3:B24)))&CHAR(10),\"\")","v":""},null,{"$f":"IFERROR(INDEX(Tevékenység,SMALL(IF(Cél=$F$2,ROW(Tevékenység)-MIN(ROW(Tevékenység))+1),ROWS($B$3:B24)))&CHAR(10),\"\")","v":""},null,{"$f":"IFERROR(INDEX(Tevékenység,SMALL(IF(Cél=$H$2,ROW(Tevékenység)-MIN(ROW(Tevékenység))+1),ROWS($B$3:B24)))&CHAR(10),\"\")","v":""}]
[null,{"$f":"IFERROR(INDEX(Tevékenység,SMALL(IF(Cél=$B$2,ROW(Tevékenység)-MIN(ROW(Tevékenység))+1),ROWS($B$3:B25)))&\" \"&CHAR(10)&(INDEX(Eredmény,SMALL(IF(Cél=$B$2,ROW(Eredmény)-MIN(ROW(Eredmény))+1),ROWS($B$3:B25))))&CHAR(10),\"\")","v":""},null,{"$f":"IFERROR(INDEX(Tevékenység,SMALL(IF(Cél=$D$2,ROW(Tevékenység)-MIN(ROW(Tevékenység))+1),ROWS($B$3:B25)))&CHAR(10),\"\")","v":""},null,{"$f":"IFERROR(INDEX(Tevékenység,SMALL(IF(Cél=$F$2,ROW(Tevékenység)-MIN(ROW(Tevékenység))+1),ROWS($B$3:B25)))&CHAR(10),\"\")","v":""},null,{"$f":"IFERROR(INDEX(Tevékenység,SMALL(IF(Cél=$H$2,ROW(Tevékenység)-MIN(ROW(Tevékenység))+1),ROWS($B$3:B25)))&CHAR(10),\"\")","v":""}]
[null,{"$f":"IFERROR(INDEX(Tevékenység,SMALL(IF(Cél=$B$2,ROW(Tevékenység)-MIN(ROW(Tevékenység))+1),ROWS($B$3:B26)))&\" \"&CHAR(10)&(INDEX(Eredmény,SMALL(IF(Cél=$B$2,ROW(Eredmény)-MIN(ROW(Eredmény))+1),ROWS($B$3:B26))))&CHAR(10),\"\")","v":""},null,{"$f":"IFERROR(INDEX(Tevékenység,SMALL(IF(Cél=$D$2,ROW(Tevékenység)-MIN(ROW(Tevékenység))+1),ROWS($B$3:B26)))&CHAR(10),\"\")","v":""},null,{"$f":"IFERROR(INDEX(Tevékenység,SMALL(IF(Cél=$F$2,ROW(Tevékenység)-MIN(ROW(Tevékenység))+1),ROWS($B$3:B26)))&CHAR(10),\"\")","v":""},null,{"$f":"IFERROR(INDEX(Tevékenység,SMALL(IF(Cél=$H$2,ROW(Tevékenység)-MIN(ROW(Tevékenység))+1),ROWS($B$3:B26)))&CHAR(10),\"\")","v":""}]
[null,{"$f":"IFERROR(INDEX(Tevékenység,SMALL(IF(Cél=$B$2,ROW(Tevékenység)-MIN(ROW(Tevékenység))+1),ROWS($B$3:B27)))&\" \"&CHAR(10)&(INDEX(Eredmény,SMALL(IF(Cél=$B$2,ROW(Eredmény)-MIN(ROW(Eredmény))+1),ROWS($B$3:B27))))&CHAR(10),\"\")","v":""},null,{"$f":"IFERROR(INDEX(Tevékenység,SMALL(IF(Cél=$D$2,ROW(Tevékenység)-MIN(ROW(Tevékenység))+1),ROWS($B$3:B27)))&CHAR(10),\"\")","v":""},null,{"$f":"IFERROR(INDEX(Tevékenység,SMALL(IF(Cél=$F$2,ROW(Tevékenység)-MIN(ROW(Tevékenység))+1),ROWS($B$3:B27)))&CHAR(10),\"\")","v":""},null,{"$f":"IFERROR(INDEX(Tevékenység,SMALL(IF(Cél=$H$2,ROW(Tevékenység)-MIN(ROW(Tevékenység))+1),ROWS($B$3:B27)))&CHAR(10),\"\")","v":""}]
[null,{"$f":"IFERROR(INDEX(Tevékenység,SMALL(IF(Cél=$B$2,ROW(Tevékenység)-MIN(ROW(Tevékenység))+1),ROWS($B$3:B28)))&\" \"&CHAR(10)&(INDEX(Eredmény,SMALL(IF(Cél=$B$2,ROW(Eredmény)-MIN(ROW(Eredmény))+1),ROWS($B$3:B28))))&CHAR(10),\"\")","v":""},null,{"$f":"IFERROR(INDEX(Tevékenység,SMALL(IF(Cél=$D$2,ROW(Tevékenység)-MIN(ROW(Tevékenység))+1),ROWS($B$3:B28)))&CHAR(10),\"\")","v":""},null,{"$f":"IFERROR(INDEX(Tevékenység,SMALL(IF(Cél=$F$2,ROW(Tevékenység)-MIN(ROW(Tevékenység))+1),ROWS($B$3:B28)))&CHAR(10),\"\")","v":""},null,{"$f":"IFERROR(INDEX(Tevékenység,SMALL(IF(Cél=$H$2,ROW(Tevékenység)-MIN(ROW(Tevékenység))+1),ROWS($B$3:B28)))&CHAR(10),\"\")","v":""}]
[null,{"$f":"IFERROR(INDEX(Tevékenység,SMALL(IF(Cél=$B$2,ROW(Tevékenység)-MIN(ROW(Tevékenység))+1),ROWS($B$3:B29)))&\" \"&CHAR(10)&(INDEX(Eredmény,SMALL(IF(Cél=$B$2,ROW(Eredmény)-MIN(ROW(Eredmény))+1),ROWS($B$3:B29))))&CHAR(10),\"\")","v":""},null,{"$f":"IFERROR(INDEX(Tevékenység,SMALL(IF(Cél=$D$2,ROW(Tevékenység)-MIN(ROW(Tevékenység))+1),ROWS($B$3:B29)))&CHAR(10),\"\")","v":""},null,{"$f":"IFERROR(INDEX(Tevékenység,SMALL(IF(Cél=$F$2,ROW(Tevékenység)-MIN(ROW(Tevékenység))+1),ROWS($B$3:B29)))&CHAR(10),\"\")","v":""},null,{"$f":"IFERROR(INDEX(Tevékenység,SMALL(IF(Cél=$H$2,ROW(Tevékenység)-MIN(ROW(Tevékenység))+1),ROWS($B$3:B29)))&CHAR(10),\"\")","v":""}]
[null,{"$f":"IFERROR(INDEX(Tevékenység,SMALL(IF(Cél=$B$2,ROW(Tevékenység)-MIN(ROW(Tevékenység))+1),ROWS($B$3:B30)))&\" \"&CHAR(10)&(INDEX(Eredmény,SMALL(IF(Cél=$B$2,ROW(Eredmény)-MIN(ROW(Eredmény))+1),ROWS($B$3:B30))))&CHAR(10),\"\")","v":""},null,{"$f":"IFERROR(INDEX(Tevékenység,SMALL(IF(Cél=$D$2,ROW(Tevékenység)-MIN(ROW(Tevékenység))+1),ROWS($B$3:B30)))&CHAR(10),\"\")","v":""},null,{"$f":"IFERROR(INDEX(Tevékenység,SMALL(IF(Cél=$F$2,ROW(Tevékenység)-MIN(ROW(Tevékenység))+1),ROWS($B$3:B30)))&CHAR(10),\"\")","v":""},null,{"$f":"IFERROR(INDEX(Tevékenység,SMALL(IF(Cél=$H$2,ROW(Tevékenység)-MIN(ROW(Tevékenység))+1),ROWS($B$3:B30)))&CHAR(10),\"\")","v":""}]
[null,{"$f":"IFERROR(INDEX(Tevékenység,SMALL(IF(Cél=$B$2,ROW(Tevékenység)-MIN(ROW(Tevékenység))+1),ROWS($B$3:B31)))&\" \"&CHAR(10)&(INDEX(Eredmény,SMALL(IF(Cél=$B$2,ROW(Eredmény)-MIN(ROW(Eredmény))+1),ROWS($B$3:B31))))&CHAR(10),\"\")","v":""},null,{"$f":"IFERROR(INDEX(Tevékenység,SMALL(IF(Cél=$D$2,ROW(Tevékenység)-MIN(ROW(Tevékenység))+1),ROWS($B$3:B31)))&CHAR(10),\"\")","v":""},null,{"$f":"IFERROR(INDEX(Tevékenység,SMALL(IF(Cél=$F$2,ROW(Tevékenység)-MIN(ROW(Tevékenység))+1),ROWS($B$3:B31)))&CHAR(10),\"\")","v":""},null,{"$f":"IFERROR(INDEX(Tevékenység,SMALL(IF(Cél=$H$2,ROW(Tevékenység)-MIN(ROW(Tevékenység))+1),ROWS($B$3:B31)))&CHAR(10),\"\")","v":""}]
[null,{"$f":"IFERROR(INDEX(Tevékenység,SMALL(IF(Cél=$B$2,ROW(Tevékenység)-MIN(ROW(Tevékenység))+1),ROWS($B$3:B32)))&\" \"&CHAR(10)&(INDEX(Eredmény,SMALL(IF(Cél=$B$2,ROW(Eredmény)-MIN(ROW(Eredmény))+1),ROWS($B$3:B32))))&CHAR(10),\"\")","v":""},null,{"$f":"IFERROR(INDEX(Tevékenység,SMALL(IF(Cél=$D$2,ROW(Tevékenység)-MIN(ROW(Tevékenység))+1),ROWS($B$3:B32)))&CHAR(10),\"\")","v":""},null,{"$f":"IFERROR(INDEX(Tevékenység,SMALL(IF(Cél=$F$2,ROW(Tevékenység)-MIN(ROW(Tevékenység))+1),ROWS($B$3:B32)))&CHAR(10),\"\")","v":""},null,{"$f":"IFERROR(INDEX(Tevékenység,SMALL(IF(Cél=$H$2,ROW(Tevékenység)-MIN(ROW(Tevékenység))+1),ROWS($B$3:B32)))&CHAR(10),\"\")","v":""}]
[null,{"$f":"IFERROR(INDEX(Tevékenység,SMALL(IF(Cél=$B$2,ROW(Tevékenység)-MIN(ROW(Tevékenység))+1),ROWS($B$3:B33)))&\" \"&CHAR(10)&(INDEX(Eredmény,SMALL(IF(Cél=$B$2,ROW(Eredmény)-MIN(ROW(Eredmény))+1),ROWS($B$3:B33))))&CHAR(10),\"\")","v":""},null,{"$f":"IFERROR(INDEX(Tevékenység,SMALL(IF(Cél=$D$2,ROW(Tevékenység)-MIN(ROW(Tevékenység))+1),ROWS($B$3:B33)))&CHAR(10),\"\")","v":""},null,{"$f":"IFERROR(INDEX(Tevékenység,SMALL(IF(Cél=$F$2,ROW(Tevékenység)-MIN(ROW(Tevékenység))+1),ROWS($B$3:B33)))&CHAR(10),\"\")","v":""},null,{"$f":"IFERROR(INDEX(Tevékenység,SMALL(IF(Cél=$H$2,ROW(Tevékenység)-MIN(ROW(Tevékenység))+1),ROWS($B$3:B33)))&CHAR(10),\"\")","v":""}]
[null,{"$f":"IFERROR(INDEX(Tevékenység,SMALL(IF(Cél=$B$2,ROW(Tevékenység)-MIN(ROW(Tevékenység))+1),ROWS($B$3:B34)))&\" \"&CHAR(10)&(INDEX(Eredmény,SMALL(IF(Cél=$B$2,ROW(Eredmény)-MIN(ROW(Eredmény))+1),ROWS($B$3:B34))))&CHAR(10),\"\")","v":""},null,{"$f":"IFERROR(INDEX(Tevékenység,SMALL(IF(Cél=$D$2,ROW(Tevékenység)-MIN(ROW(Tevékenység))+1),ROWS($B$3:B34)))&CHAR(10),\"\")","v":""},null,{"$f":"IFERROR(INDEX(Tevékenység,SMALL(IF(Cél=$F$2,ROW(Tevékenység)-MIN(ROW(Tevékenység))+1),ROWS($B$3:B34)))&CHAR(10),\"\")","v":""},null,{"$f":"IFERROR(INDEX(Tevékenység,SMALL(IF(Cél=$H$2,ROW(Tevékenység)-MIN(ROW(Tevékenység))+1),ROWS($B$3:B34)))&CHAR(10),\"\")","v":""}]
[null,{"$f":"IFERROR(INDEX(Tevékenység,SMALL(IF(Cél=$B$2,ROW(Tevékenység)-MIN(ROW(Tevékenység))+1),ROWS($B$3:B35)))&\" \"&CHAR(10)&(INDEX(Eredmény,SMALL(IF(Cél=$B$2,ROW(Eredmény)-MIN(ROW(Eredmény))+1),ROWS($B$3:B35))))&CHAR(10),\"\")","v":""},null,{"$f":"IFERROR(INDEX(Tevékenység,SMALL(IF(Cél=$D$2,ROW(Tevékenység)-MIN(ROW(Tevékenység))+1),ROWS($B$3:B35)))&CHAR(10),\"\")","v":""},null,{"$f":"IFERROR(INDEX(Tevékenység,SMALL(IF(Cél=$F$2,ROW(Tevékenység)-MIN(ROW(Tevékenység))+1),ROWS($B$3:B35)))&CHAR(10),\"\")","v":""},null,{"$f":"IFERROR(INDEX(Tevékenység,SMALL(IF(Cél=$H$2,ROW(Tevékenység)-MIN(ROW(Tevékenység))+1),ROWS($B$3:B35)))&CHAR(10),\"\")","v":""}]
[null,{"$f":"IFERROR(INDEX(Tevékenység,SMALL(IF(Cél=$B$2,ROW(Tevékenység)-MIN(ROW(Tevékenység))+1),ROWS($B$3:B36)))&\" \"&CHAR(10)&(INDEX(Eredmény,SMALL(IF(Cél=$B$2,ROW(Eredmény)-MIN(ROW(Eredmény))+1),ROWS($B$3:B36))))&CHAR(10),\"\")","v":""},null,{"$f":"IFERROR(INDEX(Tevékenység,SMALL(IF(Cél=$D$2,ROW(Tevékenység)-MIN(ROW(Tevékenység))+1),ROWS($B$3:B36)))&CHAR(10),\"\")","v":""},null,{"$f":"IFERROR(INDEX(Tevékenység,SMALL(IF(Cél=$F$2,ROW(Tevékenység)-MIN(ROW(Tevékenység))+1),ROWS($B$3:B36)))&CHAR(10),\"\")","v":""},null,{"$f":"IFERROR(INDEX(Tevékenység,SMALL(IF(Cél=$H$2,ROW(Tevékenység)-MIN(ROW(Tevékenység))+1),ROWS($B$3:B36)))&CHAR(10),\"\")","v":""}]
[null,{"$f":"IFERROR(INDEX(Tevékenység,SMALL(IF(Cél=$B$2,ROW(Tevékenység)-MIN(ROW(Tevékenység))+1),ROWS($B$3:B37)))&\" \"&CHAR(10)&(INDEX(Eredmény,SMALL(IF(Cél=$B$2,ROW(Eredmény)-MIN(ROW(Eredmény))+1),ROWS($B$3:B37))))&CHAR(10),\"\")","v":""},null,{"$f":"IFERROR(INDEX(Tevékenység,SMALL(IF(Cél=$D$2,ROW(Tevékenység)-MIN(ROW(Tevékenység))+1),ROWS($B$3:B37)))&CHAR(10),\"\")","v":""},null,{"$f":"IFERROR(INDEX(Tevékenység,SMALL(IF(Cél=$F$2,ROW(Tevékenység)-MIN(ROW(Tevékenység))+1),ROWS($B$3:B37)))&CHAR(10),\"\")","v":""},null,{"$f":"IFERROR(INDEX(Tevékenység,SMALL(IF(Cél=$H$2,ROW(Tevékenység)-MIN(ROW(Tevékenység))+1),ROWS($B$3:B37)))&CHAR(10),\"\")","v":""}]
[null,{"$f":"IFERROR(INDEX(Tevékenység,SMALL(IF(Cél=$B$2,ROW(Tevékenység)-MIN(ROW(Tevékenység))+1),ROWS($B$3:B38)))&\" \"&CHAR(10)&(INDEX(Eredmény,SMALL(IF(Cél=$B$2,ROW(Eredmény)-MIN(ROW(Eredmény))+1),ROWS($B$3:B38))))&CHAR(10),\"\")","v":""},null,{"$f":"IFERROR(INDEX(Tevékenység,SMALL(IF(Cél=$D$2,ROW(Tevékenység)-MIN(ROW(Tevékenység))+1),ROWS($B$3:B38)))&CHAR(10),\"\")","v":""},null,{"$f":"IFERROR(INDEX(Tevékenység,SMALL(IF(Cél=$F$2,ROW(Tevékenység)-MIN(ROW(Tevékenység))+1),ROWS($B$3:B38)))&CHAR(10),\"\")","v":""},null,{"$f":"IFERROR(INDEX(Tevékenység,SMALL(IF(Cél=$H$2,ROW(Tevékenység)-MIN(ROW(Tevékenység))+1),ROWS($B$3:B38)))&CHAR(10),\"\")","v":""}]
[null,{"$f":"IFERROR(INDEX(Tevékenység,SMALL(IF(Cél=$B$2,ROW(Tevékenység)-MIN(ROW(Tevékenység))+1),ROWS($B$3:B39)))&\" \"&CHAR(10)&(INDEX(Eredmény,SMALL(IF(Cél=$B$2,ROW(Eredmény)-MIN(ROW(Eredmény))+1),ROWS($B$3:B39))))&CHAR(10),\"\")","v":""},null,{"$f":"IFERROR(INDEX(Tevékenység,SMALL(IF(Cél=$D$2,ROW(Tevékenység)-MIN(ROW(Tevékenység))+1),ROWS($B$3:B39)))&CHAR(10),\"\")","v":""},null,{"$f":"IFERROR(INDEX(Tevékenység,SMALL(IF(Cél=$F$2,ROW(Tevékenység)-MIN(ROW(Tevékenység))+1),ROWS($B$3:B39)))&CHAR(10),\"\")","v":""},null,{"$f":"IFERROR(INDEX(Tevékenység,SMALL(IF(Cél=$H$2,ROW(Tevékenység)-MIN(ROW(Tevékenység))+1),ROWS($B$3:B39)))&CHAR(10),\"\")","v":""}]
[null,{"$f":"IFERROR(INDEX(Tevékenység,SMALL(IF(Cél=$B$2,ROW(Tevékenység)-MIN(ROW(Tevékenység))+1),ROWS($B$3:B40)))&\" \"&CHAR(10)&(INDEX(Eredmény,SMALL(IF(Cél=$B$2,ROW(Eredmény)-MIN(ROW(Eredmény))+1),ROWS($B$3:B40))))&CHAR(10),\"\")","v":""},null,{"$f":"IFERROR(INDEX(Tevékenység,SMALL(IF(Cél=$D$2,ROW(Tevékenység)-MIN(ROW(Tevékenység))+1),ROWS($B$3:B40)))&CHAR(10),\"\")","v":""},null,{"$f":"IFERROR(INDEX(Tevékenység,SMALL(IF(Cél=$F$2,ROW(Tevékenység)-MIN(ROW(Tevékenység))+1),ROWS($B$3:B40)))&CHAR(10),\"\")","v":""},null,{"$f":"IFERROR(INDEX(Tevékenység,SMALL(IF(Cél=$H$2,ROW(Tevékenység)-MIN(ROW(Tevékenység))+1),ROWS($B$3:B40)))&CHAR(10),\"\")","v":""}]
[null,{"$f":"IFERROR(INDEX(Tevékenység,SMALL(IF(Cél=$B$2,ROW(Tevékenység)-MIN(ROW(Tevékenység))+1),ROWS($B$3:B41)))&\" \"&CHAR(10)&(INDEX(Eredmény,SMALL(IF(Cél=$B$2,ROW(Eredmény)-MIN(ROW(Eredmény))+1),ROWS($B$3:B41))))&CHAR(10),\"\")","v":""},null,{"$f":"IFERROR(INDEX(Tevékenység,SMALL(IF(Cél=$D$2,ROW(Tevékenység)-MIN(ROW(Tevékenység))+1),ROWS($B$3:B41)))&CHAR(10),\"\")","v":""},null,{"$f":"IFERROR(INDEX(Tevékenység,SMALL(IF(Cél=$F$2,ROW(Tevékenység)-MIN(ROW(Tevékenység))+1),ROWS($B$3:B41)))&CHAR(10),\"\")","v":""},null,{"$f":"IFERROR(INDEX(Tevékenység,SMALL(IF(Cél=$H$2,ROW(Tevékenység)-MIN(ROW(Tevékenység))+1),ROWS($B$3:B41)))&CHAR(10),\"\")","v":""}]
[null,{"$f":"IFERROR(INDEX(Tevékenység,SMALL(IF(Cél=$B$2,ROW(Tevékenység)-MIN(ROW(Tevékenység))+1),ROWS($B$3:B42)))&\" \"&CHAR(10)&(INDEX(Eredmény,SMALL(IF(Cél=$B$2,ROW(Eredmény)-MIN(ROW(Eredmény))+1),ROWS($B$3:B42))))&CHAR(10),\"\")","v":""},null,{"$f":"IFERROR(INDEX(Tevékenység,SMALL(IF(Cél=$D$2,ROW(Tevékenység)-MIN(ROW(Tevékenység))+1),ROWS($B$3:B42)))&CHAR(10),\"\")","v":""},null,{"$f":"IFERROR(INDEX(Tevékenység,SMALL(IF(Cél=$F$2,ROW(Tevékenység)-MIN(ROW(Tevékenység))+1),ROWS($B$3:B42)))&CHAR(10),\"\")","v":""},null,{"$f":"IFERROR(INDEX(Tevékenység,SMALL(IF(Cél=$H$2,ROW(Tevékenység)-MIN(ROW(Tevékenység))+1),ROWS($B$3:B42)))&CHAR(10),\"\")","v":""}]
[null,{"$f":"IFERROR(INDEX(Tevékenység,SMALL(IF(Cél=$B$2,ROW(Tevékenység)-MIN(ROW(Tevékenység))+1),ROWS($B$3:B43)))&\" \"&CHAR(10)&(INDEX(Eredmény,SMALL(IF(Cél=$B$2,ROW(Eredmény)-MIN(ROW(Eredmény))+1),ROWS($B$3:B43))))&CHAR(10),\"\")","v":""},null,{"$f":"IFERROR(INDEX(Tevékenység,SMALL(IF(Cél=$D$2,ROW(Tevékenység)-MIN(ROW(Tevékenység))+1),ROWS($B$3:B43)))&CHAR(10),\"\")","v":""},null,{"$f":"IFERROR(INDEX(Tevékenység,SMALL(IF(Cél=$F$2,ROW(Tevékenység)-MIN(ROW(Tevékenység))+1),ROWS($B$3:B43)))&CHAR(10),\"\")","v":""},null,{"$f":"IFERROR(INDEX(Tevékenység,SMALL(IF(Cél=$H$2,ROW(Tevékenység)-MIN(ROW(Tevékenység))+1),ROWS($B$3:B43)))&CHAR(10),\"\")","v":""}]
[null,{"$f":"IFERROR(INDEX(Tevékenység,SMALL(IF(Cél=$B$2,ROW(Tevékenység)-MIN(ROW(Tevékenység))+1),ROWS($B$3:B44)))&\" \"&CHAR(10)&(INDEX(Eredmény,SMALL(IF(Cél=$B$2,ROW(Eredmény)-MIN(ROW(Eredmény))+1),ROWS($B$3:B44))))&CHAR(10),\"\")","v":""},null,{"$f":"IFERROR(INDEX(Tevékenység,SMALL(IF(Cél=$D$2,ROW(Tevékenység)-MIN(ROW(Tevékenység))+1),ROWS($B$3:B44)))&CHAR(10),\"\")","v":""},null,{"$f":"IFERROR(INDEX(Tevékenység,SMALL(IF(Cél=$F$2,ROW(Tevékenység)-MIN(ROW(Tevékenység))+1),ROWS($B$3:B44)))&CHAR(10),\"\")","v":""},null,{"$f":"IFERROR(INDEX(Tevékenység,SMALL(IF(Cél=$H$2,ROW(Tevékenység)-MIN(ROW(Tevékenység))+1),ROWS($B$3:B44)))&CHAR(10),\"\")","v":""}]
[null,{"$f":"IFERROR(INDEX(Tevékenység,SMALL(IF(Cél=$B$2,ROW(Tevékenység)-MIN(ROW(Tevékenység))+1),ROWS($B$3:B45)))&\" \"&CHAR(10)&(INDEX(Eredmény,SMALL(IF(Cél=$B$2,ROW(Eredmény)-MIN(ROW(Eredmény))+1),ROWS($B$3:B45))))&CHAR(10),\"\")","v":""},null,{"$f":"IFERROR(INDEX(Tevékenység,SMALL(IF(Cél=$D$2,ROW(Tevékenység)-MIN(ROW(Tevékenység))+1),ROWS($B$3:B45)))&CHAR(10),\"\")","v":""},null,{"$f":"IFERROR(INDEX(Tevékenység,SMALL(IF(Cél=$F$2,ROW(Tevékenység)-MIN(ROW(Tevékenység))+1),ROWS($B$3:B45)))&CHAR(10),\"\")","v":""},null,{"$f":"IFERROR(INDEX(Tevékenység,SMALL(IF(Cél=$H$2,ROW(Tevékenység)-MIN(ROW(Tevékenység))+1),ROWS($B$3:B45)))&CHAR(10),\"\")","v":""}]
[null,{"$f":"IFERROR(INDEX(Tevékenység,SMALL(IF(Cél=$B$2,ROW(Tevékenység)-MIN(ROW(Tevékenység))+1),ROWS($B$3:B46)))&\" \"&CHAR(10)&(INDEX(Eredmény,SMALL(IF(Cél=$B$2,ROW(Eredmény)-MIN(ROW(Eredmény))+1),ROWS($B$3:B46))))&CHAR(10),\"\")","v":""},null,{"$f":"IFERROR(INDEX(Tevékenység,SMALL(IF(Cél=$D$2,ROW(Tevékenység)-MIN(ROW(Tevékenység))+1),ROWS($B$3:B46)))&CHAR(10),\"\")","v":""},null,{"$f":"IFERROR(INDEX(Tevékenység,SMALL(IF(Cél=$F$2,ROW(Tevékenység)-MIN(ROW(Tevékenység))+1),ROWS($B$3:B46)))&CHAR(10),\"\")","v":""},null,{"$f":"IFERROR(INDEX(Tevékenység,SMALL(IF(Cél=$H$2,ROW(Tevékenység)-MIN(ROW(Tevékenység))+1),ROWS($B$3:B46)))&CHAR(10),\"\")","v":""}]
[null,{"$f":"IFERROR(INDEX(Tevékenység,SMALL(IF(Cél=$B$2,ROW(Tevékenység)-MIN(ROW(Tevékenység))+1),ROWS($B$3:B47)))&\" \"&CHAR(10)&(INDEX(Eredmény,SMALL(IF(Cél=$B$2,ROW(Eredmény)-MIN(ROW(Eredmény))+1),ROWS($B$3:B47))))&CHAR(10),\"\")","v":""},null,{"$f":"IFERROR(INDEX(Tevékenység,SMALL(IF(Cél=$D$2,ROW(Tevékenység)-MIN(ROW(Tevékenység))+1),ROWS($B$3:B47)))&CHAR(10),\"\")","v":""},null,{"$f":"IFERROR(INDEX(Tevékenység,SMALL(IF(Cél=$F$2,ROW(Tevékenység)-MIN(ROW(Tevékenység))+1),ROWS($B$3:B47)))&CHAR(10),\"\")","v":""},null,{"$f":"IFERROR(INDEX(Tevékenység,SMALL(IF(Cél=$H$2,ROW(Tevékenység)-MIN(ROW(Tevékenység))+1),ROWS($B$3:B47)))&CHAR(10),\"\")","v":""}]
[null,{"$f":"IFERROR(INDEX(Tevékenység,SMALL(IF(Cél=$B$2,ROW(Tevékenység)-MIN(ROW(Tevékenység))+1),ROWS($B$3:B48)))&\" \"&CHAR(10)&(INDEX(Eredmény,SMALL(IF(Cél=$B$2,ROW(Eredmény)-MIN(ROW(Eredmény))+1),ROWS($B$3:B48))))&CHAR(10),\"\")","v":""},null,{"$f":"IFERROR(INDEX(Tevékenység,SMALL(IF(Cél=$D$2,ROW(Tevékenység)-MIN(ROW(Tevékenység))+1),ROWS($B$3:B48)))&CHAR(10),\"\")","v":""},null,{"$f":"IFERROR(INDEX(Tevékenység,SMALL(IF(Cél=$F$2,ROW(Tevékenység)-MIN(ROW(Tevékenység))+1),ROWS($B$3:B48)))&CHAR(10),\"\")","v":""},null,{"$f":"IFERROR(INDEX(Tevékenység,SMALL(IF(Cél=$H$2,ROW(Tevékenység)-MIN(ROW(Tevékenység))+1),ROWS($B$3:B48)))&CHAR(10),\"\")","v":""}]
[null,{"$f":"IFERROR(INDEX(Tevékenység,SMALL(IF(Cél=$B$2,ROW(Tevékenység)-MIN(ROW(Tevékenység))+1),ROWS($B$3:B49)))&\" \"&CHAR(10)&(INDEX(Eredmény,SMALL(IF(Cél=$B$2,ROW(Eredmény)-MIN(ROW(Eredmény))+1),ROWS($B$3:B49))))&CHAR(10),\"\")","v":""},null,{"$f":"IFERROR(INDEX(Tevékenység,SMALL(IF(Cél=$D$2,ROW(Tevékenység)-MIN(ROW(Tevékenység))+1),ROWS($B$3:B49)))&CHAR(10),\"\")","v":""},null,{"$f":"IFERROR(INDEX(Tevékenység,SMALL(IF(Cél=$F$2,ROW(Tevékenység)-MIN(ROW(Tevékenység))+1),ROWS($B$3:B49)))&CHAR(10),\"\")","v":""},null,{"$f":"IFERROR(INDEX(Tevékenység,SMALL(IF(Cél=$H$2,ROW(Tevékenység)-MIN(ROW(Tevékenység))+1),ROWS($B$3:B49)))&CHAR(10),\"\")","v":""}]
[null,{"$f":"IFERROR(INDEX(Tevékenység,SMALL(IF(Cél=$B$2,ROW(Tevékenység)-MIN(ROW(Tevékenység))+1),ROWS($B$3:B50)))&\" \"&CHAR(10)&(INDEX(Eredmény,SMALL(IF(Cél=$B$2,ROW(Eredmény)-MIN(ROW(Eredmény))+1),ROWS($B$3:B50))))&CHAR(10),\"\")","v":""},null,{"$f":"IFERROR(INDEX(Tevékenység,SMALL(IF(Cél=$D$2,ROW(Tevékenység)-MIN(ROW(Tevékenység))+1),ROWS($B$3:B50)))&CHAR(10),\"\")","v":""},null,{"$f":"IFERROR(INDEX(Tevékenység,SMALL(IF(Cél=$F$2,ROW(Tevékenység)-MIN(ROW(Tevékenység))+1),ROWS($B$3:B50)))&CHAR(10),\"\")","v":""},null,{"$f":"IFERROR(INDEX(Tevékenység,SMALL(IF(Cél=$H$2,ROW(Tevékenység)-MIN(ROW(Tevékenység))+1),ROWS($B$3:B50)))&CHAR(10),\"\")","v":""}]
[null,{"$f":"IFERROR(INDEX(Tevékenység,SMALL(IF(Cél=$B$2,ROW(Tevékenység)-MIN(ROW(Tevékenység))+1),ROWS($B$3:B51)))&\" \"&CHAR(10)&(INDEX(Eredmény,SMALL(IF(Cél=$B$2,ROW(Eredmény)-MIN(ROW(Eredmény))+1),ROWS($B$3:B51))))&CHAR(10),\"\")","v":""},null,{"$f":"IFERROR(INDEX(Tevékenység,SMALL(IF(Cél=$D$2,ROW(Tevékenység)-MIN(ROW(Tevékenység))+1),ROWS($B$3:B51)))&CHAR(10),\"\")","v":""},null,{"$f":"IFERROR(INDEX(Tevékenység,SMALL(IF(Cél=$F$2,ROW(Tevékenység)-MIN(ROW(Tevékenység))+1),ROWS($B$3:B51)))&CHAR(10),\"\")","v":""},null,{"$f":"IFERROR(INDEX(Tevékenység,SMALL(IF(Cél=$H$2,ROW(Tevékenység)-MIN(ROW(Tevékenység))+1),ROWS($B$3:B51)))&CHAR(10),\"\")","v":""}]
[null,{"$f":"IFERROR(INDEX(Tevékenység,SMALL(IF(Cél=$B$2,ROW(Tevékenység)-MIN(ROW(Tevékenység))+1),ROWS($B$3:B52)))&\" \"&CHAR(10)&(INDEX(Eredmény,SMALL(IF(Cél=$B$2,ROW(Eredmény)-MIN(ROW(Eredmény))+1),ROWS($B$3:B52))))&CHAR(10),\"\")","v":""},null,{"$f":"IFERROR(INDEX(Tevékenység,SMALL(IF(Cél=$D$2,ROW(Tevékenység)-MIN(ROW(Tevékenység))+1),ROWS($B$3:B52)))&CHAR(10),\"\")","v":""},null,{"$f":"IFERROR(INDEX(Tevékenység,SMALL(IF(Cél=$F$2,ROW(Tevékenység)-MIN(ROW(Tevékenység))+1),ROWS($B$3:B52)))&CHAR(10),\"\")","v":""},null,{"$f":"IFERROR(INDEX(Tevékenység,SMALL(IF(Cél=$H$2,ROW(Tevékenység)-MIN(ROW(Tevékenység))+1),ROWS($B$3:B52)))&CHAR(10),\"\")","v":""}]
[null,{"$f":"IFERROR(INDEX(Tevékenység,SMALL(IF(Cél=$B$2,ROW(Tevékenység)-MIN(ROW(Tevékenység))+1),ROWS($B$3:B53)))&\" \"&CHAR(10)&(INDEX(Eredmény,SMALL(IF(Cél=$B$2,ROW(Eredmény)-MIN(ROW(Eredmény))+1),ROWS($B$3:B53))))&CHAR(10),\"\")","v":""},null,{"$f":"IFERROR(INDEX(Tevékenység,SMALL(IF(Cél=$D$2,ROW(Tevékenység)-MIN(ROW(Tevékenység))+1),ROWS($B$3:B53)))&CHAR(10),\"\")","v":""},null,{"$f":"IFERROR(INDEX(Tevékenység,SMALL(IF(Cél=$F$2,ROW(Tevékenység)-MIN(ROW(Tevékenység))+1),ROWS($B$3:B53)))&CHAR(10),\"\")","v":""},null,{"$f":"IFERROR(INDEX(Tevékenység,SMALL(IF(Cél=$H$2,ROW(Tevékenység)-MIN(ROW(Tevékenység))+1),ROWS($B$3:B53)))&CHAR(10),\"\")","v":""}]
[null,{"$f":"IFERROR(INDEX(Tevékenység,SMALL(IF(Cél=$B$2,ROW(Tevékenység)-MIN(ROW(Tevékenység))+1),ROWS($B$3:B54)))&\" \"&CHAR(10)&(INDEX(Eredmény,SMALL(IF(Cél=$B$2,ROW(Eredmény)-MIN(ROW(Eredmény))+1),ROWS($B$3:B54))))&CHAR(10),\"\")","v":""},null,{"$f":"IFERROR(INDEX(Tevékenység,SMALL(IF(Cél=$D$2,ROW(Tevékenység)-MIN(ROW(Tevékenység))+1),ROWS($B$3:B54)))&CHAR(10),\"\")","v":""},null,{"$f":"IFERROR(INDEX(Tevékenység,SMALL(IF(Cél=$F$2,ROW(Tevékenység)-MIN(ROW(Tevékenység))+1),ROWS($B$3:B54)))&CHAR(10),\"\")","v":""},null,{"$f":"IFERROR(INDEX(Tevékenység,SMALL(IF(Cél=$H$2,ROW(Tevékenység)-MIN(ROW(Tevékenység))+1),ROWS($B$3:B54)))&CHAR(10),\"\")","v":""}]
[null,{"$f":"IFERROR(INDEX(Tevékenység,SMALL(IF(Cél=$B$2,ROW(Tevékenység)-MIN(ROW(Tevékenység))+1),ROWS($B$3:B55)))&\" \"&CHAR(10)&(INDEX(Eredmény,SMALL(IF(Cél=$B$2,ROW(Eredmény)-MIN(ROW(Eredmény))+1),ROWS($B$3:B55))))&CHAR(10),\"\")","v":""},null,{"$f":"IFERROR(INDEX(Tevékenység,SMALL(IF(Cél=$D$2,ROW(Tevékenység)-MIN(ROW(Tevékenység))+1),ROWS($B$3:B55)))&CHAR(10),\"\")","v":""},null,{"$f":"IFERROR(INDEX(Tevékenység,SMALL(IF(Cél=$F$2,ROW(Tevékenység)-MIN(ROW(Tevékenység))+1),ROWS($B$3:B55)))&CHAR(10),\"\")","v":""},null,{"$f":"IFERROR(INDEX(Tevékenység,SMALL(IF(Cél=$H$2,ROW(Tevékenység)-MIN(ROW(Tevékenység))+1),ROWS($B$3:B55)))&CHAR(10),\"\")","v":""}]
[null,{"$f":"IFERROR(INDEX(Tevékenység,SMALL(IF(Cél=$B$2,ROW(Tevékenység)-MIN(ROW(Tevékenység))+1),ROWS($B$3:B56)))&\" \"&CHAR(10)&(INDEX(Eredmény,SMALL(IF(Cél=$B$2,ROW(Eredmény)-MIN(ROW(Eredmény))+1),ROWS($B$3:B56))))&CHAR(10),\"\")","v":""},null,{"$f":"IFERROR(INDEX(Tevékenység,SMALL(IF(Cél=$D$2,ROW(Tevékenység)-MIN(ROW(Tevékenység))+1),ROWS($B$3:B56)))&CHAR(10),\"\")","v":""},null,{"$f":"IFERROR(INDEX(Tevékenység,SMALL(IF(Cél=$F$2,ROW(Tevékenység)-MIN(ROW(Tevékenység))+1),ROWS($B$3:B56)))&CHAR(10),\"\")","v":""},null,{"$f":"IFERROR(INDEX(Tevékenység,SMALL(IF(Cél=$H$2,ROW(Tevékenység)-MIN(ROW(Tevékenység))+1),ROWS($B$3:B56)))&CHAR(10),\"\")","v":""}]
[null,{"$f":"IFERROR(INDEX(Tevékenység,SMALL(IF(Cél=$B$2,ROW(Tevékenység)-MIN(ROW(Tevékenység))+1),ROWS($B$3:B57)))&\" \"&CHAR(10)&(INDEX(Eredmény,SMALL(IF(Cél=$B$2,ROW(Eredmény)-MIN(ROW(Eredmény))+1),ROWS($B$3:B57))))&CHAR(10),\"\")","v":""},null,{"$f":"IFERROR(INDEX(Tevékenység,SMALL(IF(Cél=$D$2,ROW(Tevékenység)-MIN(ROW(Tevékenység))+1),ROWS($B$3:B57)))&CHAR(10),\"\")","v":""},null,{"$f":"IFERROR(INDEX(Tevékenység,SMALL(IF(Cél=$F$2,ROW(Tevékenység)-MIN(ROW(Tevékenység))+1),ROWS($B$3:B57)))&CHAR(10),\"\")","v":""},null,{"$f":"IFERROR(INDEX(Tevékenység,SMALL(IF(Cél=$H$2,ROW(Tevékenység)-MIN(ROW(Tevékenység))+1),ROWS($B$3:B57)))&CHAR(10),\"\")","v":""}]
[null,{"$f":"IFERROR(INDEX(Tevékenység,SMALL(IF(Cél=$B$2,ROW(Tevékenység)-MIN(ROW(Tevékenység))+1),ROWS($B$3:B58)))&\" \"&CHAR(10)&(INDEX(Eredmény,SMALL(IF(Cél=$B$2,ROW(Eredmény)-MIN(ROW(Eredmény))+1),ROWS($B$3:B58))))&CHAR(10),\"\")","v":""},null,{"$f":"IFERROR(INDEX(Tevékenység,SMALL(IF(Cél=$D$2,ROW(Tevékenység)-MIN(ROW(Tevékenység))+1),ROWS($B$3:B58)))&CHAR(10),\"\")","v":""},null,{"$f":"IFERROR(INDEX(Tevékenység,SMALL(IF(Cél=$F$2,ROW(Tevékenység)-MIN(ROW(Tevékenység))+1),ROWS($B$3:B58)))&CHAR(10),\"\")","v":""},null,{"$f":"IFERROR(INDEX(Tevékenység,SMALL(IF(Cél=$H$2,ROW(Tevékenység)-MIN(ROW(Tevékenység))+1),ROWS($B$3:B58)))&CHAR(10),\"\")","v":""}]
[null,{"$f":"IFERROR(INDEX(Tevékenység,SMALL(IF(Cél=$B$2,ROW(Tevékenység)-MIN(ROW(Tevékenység))+1),ROWS($B$3:B59)))&\" \"&CHAR(10)&(INDEX(Eredmény,SMALL(IF(Cél=$B$2,ROW(Eredmény)-MIN(ROW(Eredmény))+1),ROWS($B$3:B59))))&CHAR(10),\"\")","v":""},null,{"$f":"IFERROR(INDEX(Tevékenység,SMALL(IF(Cél=$D$2,ROW(Tevékenység)-MIN(ROW(Tevékenység))+1),ROWS($B$3:B59)))&CHAR(10),\"\")","v":""},null,{"$f":"IFERROR(INDEX(Tevékenység,SMALL(IF(Cél=$F$2,ROW(Tevékenység)-MIN(ROW(Tevékenység))+1),ROWS($B$3:B59)))&CHAR(10),\"\")","v":""},null,{"$f":"IFERROR(INDEX(Tevékenység,SMALL(IF(Cél=$H$2,ROW(Tevékenység)-MIN(ROW(Tevékenység))+1),ROWS($B$3:B59)))&CHAR(10),\"\")","v":""}]
[null,{"$f":"IFERROR(INDEX(Tevékenység,SMALL(IF(Cél=$B$2,ROW(Tevékenység)-MIN(ROW(Tevékenység))+1),ROWS($B$3:B60)))&\" \"&CHAR(10)&(INDEX(Eredmény,SMALL(IF(Cél=$B$2,ROW(Eredmény)-MIN(ROW(Eredmény))+1),ROWS($B$3:B60))))&CHAR(10),\"\")","v":""},null,{"$f":"IFERROR(INDEX(Tevékenység,SMALL(IF(Cél=$D$2,ROW(Tevékenység)-MIN(ROW(Tevékenység))+1),ROWS($B$3:B60)))&CHAR(10),\"\")","v":""},null,{"$f":"IFERROR(INDEX(Tevékenység,SMALL(IF(Cél=$F$2,ROW(Tevékenység)-MIN(ROW(Tevékenység))+1),ROWS($B$3:B60)))&CHAR(10),\"\")","v":""},null,{"$f":"IFERROR(INDEX(Tevékenység,SMALL(IF(Cél=$H$2,ROW(Tevékenység)-MIN(ROW(Tevékenység))+1),ROWS($B$3:B60)))&CHAR(10),\"\")","v":""}]
[null,{"$f":"IFERROR(INDEX(Tevékenység,SMALL(IF(Cél=$B$2,ROW(Tevékenység)-MIN(ROW(Tevékenység))+1),ROWS($B$3:B61)))&\" \"&CHAR(10)&(INDEX(Eredmény,SMALL(IF(Cél=$B$2,ROW(Eredmény)-MIN(ROW(Eredmény))+1),ROWS($B$3:B61))))&CHAR(10),\"\")","v":""},null,{"$f":"IFERROR(INDEX(Tevékenység,SMALL(IF(Cél=$D$2,ROW(Tevékenység)-MIN(ROW(Tevékenység))+1),ROWS($B$3:B61)))&CHAR(10),\"\")","v":""},null,{"$f":"IFERROR(INDEX(Tevékenység,SMALL(IF(Cél=$F$2,ROW(Tevékenység)-MIN(ROW(Tevékenység))+1),ROWS($B$3:B61)))&CHAR(10),\"\")","v":""},null,{"$f":"IFERROR(INDEX(Tevékenység,SMALL(IF(Cél=$H$2,ROW(Tevékenység)-MIN(ROW(Tevékenység))+1),ROWS($B$3:B61)))&CHAR(10),\"\")","v":""}]
[null,{"$f":"IFERROR(INDEX(Tevékenység,SMALL(IF(Cél=$B$2,ROW(Tevékenység)-MIN(ROW(Tevékenység))+1),ROWS($B$3:B62)))&\" \"&CHAR(10)&(INDEX(Eredmény,SMALL(IF(Cél=$B$2,ROW(Eredmény)-MIN(ROW(Eredmény))+1),ROWS($B$3:B62))))&CHAR(10),\"\")","v":""},null,{"$f":"IFERROR(INDEX(Tevékenység,SMALL(IF(Cél=$D$2,ROW(Tevékenység)-MIN(ROW(Tevékenység))+1),ROWS($B$3:B62)))&CHAR(10),\"\")","v":""},null,{"$f":"IFERROR(INDEX(Tevékenység,SMALL(IF(Cél=$F$2,ROW(Tevékenység)-MIN(ROW(Tevékenység))+1),ROWS($B$3:B62)))&CHAR(10),\"\")","v":""},null,{"$f":"IFERROR(INDEX(Tevékenység,SMALL(IF(Cél=$H$2,ROW(Tevékenység)-MIN(ROW(Tevékenység))+1),ROWS($B$3:B62)))&CHAR(10),\"\")","v":""}]
[null,{"$f":"IFERROR(INDEX(Tevékenység,SMALL(IF(Cél=$B$2,ROW(Tevékenység)-MIN(ROW(Tevékenység))+1),ROWS($B$3:B63)))&\" \"&CHAR(10)&(INDEX(Eredmény,SMALL(IF(Cél=$B$2,ROW(Eredmény)-MIN(ROW(Eredmény))+1),ROWS($B$3:B63))))&CHAR(10),\"\")","v":""},null,{"$f":"IFERROR(INDEX(Tevékenység,SMALL(IF(Cél=$D$2,ROW(Tevékenység)-MIN(ROW(Tevékenység))+1),ROWS($B$3:B63)))&CHAR(10),\"\")","v":""},null,{"$f":"IFERROR(INDEX(Tevékenység,SMALL(IF(Cél=$F$2,ROW(Tevékenység)-MIN(ROW(Tevékenység))+1),ROWS($B$3:B63)))&CHAR(10),\"\")","v":""},null,{"$f":"IFERROR(INDEX(Tevékenység,SMALL(IF(Cél=$H$2,ROW(Tevékenység)-MIN(ROW(Tevékenység))+1),ROWS($B$3:B63)))&CHAR(10),\"\")","v":""}]
[null,{"$f":"IFERROR(INDEX(Tevékenység,SMALL(IF(Cél=$B$2,ROW(Tevékenység)-MIN(ROW(Tevékenység))+1),ROWS($B$3:B64)))&\" \"&CHAR(10)&(INDEX(Eredmény,SMALL(IF(Cél=$B$2,ROW(Eredmény)-MIN(ROW(Eredmény))+1),ROWS($B$3:B64))))&CHAR(10),\"\")","v":""},null,{"$f":"IFERROR(INDEX(Tevékenység,SMALL(IF(Cél=$D$2,ROW(Tevékenység)-MIN(ROW(Tevékenység))+1),ROWS($B$3:B64)))&CHAR(10),\"\")","v":""},null,{"$f":"IFERROR(INDEX(Tevékenység,SMALL(IF(Cél=$F$2,ROW(Tevékenység)-MIN(ROW(Tevékenység))+1),ROWS($B$3:B64)))&CHAR(10),\"\")","v":""},null,{"$f":"IFERROR(INDEX(Tevékenység,SMALL(IF(Cél=$H$2,ROW(Tevékenység)-MIN(ROW(Tevékenység))+1),ROWS($B$3:B64)))&CHAR(10),\"\")","v":""}]
[null,{"$f":"IFERROR(INDEX(Tevékenység,SMALL(IF(Cél=$B$2,ROW(Tevékenység)-MIN(ROW(Tevékenység))+1),ROWS($B$3:B65)))&\" \"&CHAR(10)&(INDEX(Eredmény,SMALL(IF(Cél=$B$2,ROW(Eredmény)-MIN(ROW(Eredmény))+1),ROWS($B$3:B65))))&CHAR(10),\"\")","v":""},null,{"$f":"IFERROR(INDEX(Tevékenység,SMALL(IF(Cél=$D$2,ROW(Tevékenység)-MIN(ROW(Tevékenység))+1),ROWS($B$3:B65)))&CHAR(10),\"\")","v":""},null,{"$f":"IFERROR(INDEX(Tevékenység,SMALL(IF(Cél=$F$2,ROW(Tevékenység)-MIN(ROW(Tevékenység))+1),ROWS($B$3:B65)))&CHAR(10),\"\")","v":""},null,{"$f":"IFERROR(INDEX(Tevékenység,SMALL(IF(Cél=$H$2,ROW(Tevékenység)-MIN(ROW(Tevékenység))+1),ROWS($B$3:B65)))&CHAR(10),\"\")","v":""}]
[null,{"$f":"IFERROR(INDEX(Tevékenység,SMALL(IF(Cél=$B$2,ROW(Tevékenység)-MIN(ROW(Tevékenység))+1),ROWS($B$3:B66)))&\" \"&CHAR(10)&(INDEX(Eredmény,SMALL(IF(Cél=$B$2,ROW(Eredmény)-MIN(ROW(Eredmény))+1),ROWS($B$3:B66))))&CHAR(10),\"\")","v":""},null,{"$f":"IFERROR(INDEX(Tevékenység,SMALL(IF(Cél=$D$2,ROW(Tevékenység)-MIN(ROW(Tevékenység))+1),ROWS($B$3:B66)))&CHAR(10),\"\")","v":""},null,{"$f":"IFERROR(INDEX(Tevékenység,SMALL(IF(Cél=$F$2,ROW(Tevékenység)-MIN(ROW(Tevékenység))+1),ROWS($B$3:B66)))&CHAR(10),\"\")","v":""},null,{"$f":"IFERROR(INDEX(Tevékenység,SMALL(IF(Cél=$H$2,ROW(Tevékenység)-MIN(ROW(Tevékenység))+1),ROWS($B$3:B66)))&CHAR(10),\"\")","v":""}]
[null,{"$f":"IFERROR(INDEX(Tevékenység,SMALL(IF(Cél=$B$2,ROW(Tevékenység)-MIN(ROW(Tevékenység))+1),ROWS($B$3:B67)))&\" \"&CHAR(10)&(INDEX(Eredmény,SMALL(IF(Cél=$B$2,ROW(Eredmény)-MIN(ROW(Eredmény))+1),ROWS($B$3:B67))))&CHAR(10),\"\")","v":""},null,{"$f":"IFERROR(INDEX(Tevékenység,SMALL(IF(Cél=$D$2,ROW(Tevékenység)-MIN(ROW(Tevékenység))+1),ROWS($B$3:B67)))&CHAR(10),\"\")","v":""},null,{"$f":"IFERROR(INDEX(Tevékenység,SMALL(IF(Cél=$F$2,ROW(Tevékenység)-MIN(ROW(Tevékenység))+1),ROWS($B$3:B67)))&CHAR(10),\"\")","v":""},null,{"$f":"IFERROR(INDEX(Tevékenység,SMALL(IF(Cél=$H$2,ROW(Tevékenység)-MIN(ROW(Tevékenység))+1),ROWS($B$3:B67)))&CHAR(10),\"\")","v":""}]
[null,{"$f":"IFERROR(INDEX(Tevékenység,SMALL(IF(Cél=$B$2,ROW(Tevékenység)-MIN(ROW(Tevékenység))+1),ROWS($B$3:B68)))&\" \"&CHAR(10)&(INDEX(Eredmény,SMALL(IF(Cél=$B$2,ROW(Eredmény)-MIN(ROW(Eredmény))+1),ROWS($B$3:B68))))&CHAR(10),\"\")","v":""},null,{"$f":"IFERROR(INDEX(Tevékenység,SMALL(IF(Cél=$D$2,ROW(Tevékenység)-MIN(ROW(Tevékenység))+1),ROWS($B$3:B68)))&CHAR(10),\"\")","v":""},null,{"$f":"IFERROR(INDEX(Tevékenység,SMALL(IF(Cél=$F$2,ROW(Tevékenység)-MIN(ROW(Tevékenység))+1),ROWS($B$3:B68)))&CHAR(10),\"\")","v":""},null,{"$f":"IFERROR(INDEX(Tevékenység,SMALL(IF(Cél=$H$2,ROW(Tevékenység)-MIN(ROW(Tevékenység))+1),ROWS($B$3:B68)))&CHAR(10),\"\")","v":""}]
[null,{"$f":"IFERROR(INDEX(Tevékenység,SMALL(IF(Cél=$B$2,ROW(Tevékenység)-MIN(ROW(Tevékenység))+1),ROWS($B$3:B69)))&\" \"&CHAR(10)&(INDEX(Eredmény,SMALL(IF(Cél=$B$2,ROW(Eredmény)-MIN(ROW(Eredmény))+1),ROWS($B$3:B69))))&CHAR(10),\"\")","v":""},null,{"$f":"IFERROR(INDEX(Tevékenység,SMALL(IF(Cél=$D$2,ROW(Tevékenység)-MIN(ROW(Tevékenység))+1),ROWS($B$3:B69)))&CHAR(10),\"\")","v":""},null,{"$f":"IFERROR(INDEX(Tevékenység,SMALL(IF(Cél=$F$2,ROW(Tevékenység)-MIN(ROW(Tevékenység))+1),ROWS($B$3:B69)))&CHAR(10),\"\")","v":""},null,{"$f":"IFERROR(INDEX(Tevékenység,SMALL(IF(Cél=$H$2,ROW(Tevékenység)-MIN(ROW(Tevékenység))+1),ROWS($B$3:B69)))&CHAR(10),\"\")","v":""}]
[null,{"$f":"IFERROR(INDEX(Tevékenység,SMALL(IF(Cél=$B$2,ROW(Tevékenység)-MIN(ROW(Tevékenység))+1),ROWS($B$3:B70)))&\" \"&CHAR(10)&(INDEX(Eredmény,SMALL(IF(Cél=$B$2,ROW(Eredmény)-MIN(ROW(Eredmény))+1),ROWS($B$3:B70))))&CHAR(10),\"\")","v":""},null,{"$f":"IFERROR(INDEX(Tevékenység,SMALL(IF(Cél=$D$2,ROW(Tevékenység)-MIN(ROW(Tevékenység))+1),ROWS($B$3:B70)))&CHAR(10),\"\")","v":""},null,{"$f":"IFERROR(INDEX(Tevékenység,SMALL(IF(Cél=$F$2,ROW(Tevékenység)-MIN(ROW(Tevékenység))+1),ROWS($B$3:B70)))&CHAR(10),\"\")","v":""},null,{"$f":"IFERROR(INDEX(Tevékenység,SMALL(IF(Cél=$H$2,ROW(Tevékenység)-MIN(ROW(Tevékenység))+1),ROWS($B$3:B70)))&CHAR(10),\"\")","v":""}]
[null,{"$f":"IFERROR(INDEX(Tevékenység,SMALL(IF(Cél=$B$2,ROW(Tevékenység)-MIN(ROW(Tevékenység))+1),ROWS($B$3:B71)))&\" \"&CHAR(10)&(INDEX(Eredmény,SMALL(IF(Cél=$B$2,ROW(Eredmény)-MIN(ROW(Eredmény))+1),ROWS($B$3:B71))))&CHAR(10),\"\")","v":""},null,{"$f":"IFERROR(INDEX(Tevékenység,SMALL(IF(Cél=$D$2,ROW(Tevékenység)-MIN(ROW(Tevékenység))+1),ROWS($B$3:B71)))&CHAR(10),\"\")","v":""},null,{"$f":"IFERROR(INDEX(Tevékenység,SMALL(IF(Cél=$F$2,ROW(Tevékenység)-MIN(ROW(Tevékenység))+1),ROWS($B$3:B71)))&CHAR(10),\"\")","v":""},null,{"$f":"IFERROR(INDEX(Tevékenység,SMALL(IF(Cél=$H$2,ROW(Tevékenység)-MIN(ROW(Tevékenység))+1),ROWS($B$3:B71)))&CHAR(10),\"\")","v":""}]
[null,{"$f":"IFERROR(INDEX(Tevékenység,SMALL(IF(Cél=$B$2,ROW(Tevékenység)-MIN(ROW(Tevékenység))+1),ROWS($B$3:B72)))&\" \"&CHAR(10)&(INDEX(Eredmény,SMALL(IF(Cél=$B$2,ROW(Eredmény)-MIN(ROW(Eredmény))+1),ROWS($B$3:B72))))&CHAR(10),\"\")","v":""},null,{"$f":"IFERROR(INDEX(Tevékenység,SMALL(IF(Cél=$D$2,ROW(Tevékenység)-MIN(ROW(Tevékenység))+1),ROWS($B$3:B72)))&CHAR(10),\"\")","v":""},null,{"$f":"IFERROR(INDEX(Tevékenység,SMALL(IF(Cél=$F$2,ROW(Tevékenység)-MIN(ROW(Tevékenység))+1),ROWS($B$3:B72)))&CHAR(10),\"\")","v":""},null,{"$f":"IFERROR(INDEX(Tevékenység,SMALL(IF(Cél=$H$2,ROW(Tevékenység)-MIN(ROW(Tevékenység))+1),ROWS($B$3:B72)))&CHAR(10),\"\")","v":""}]
[null,{"$f":"IFERROR(INDEX(Tevékenység,SMALL(IF(Cél=$B$2,ROW(Tevékenység)-MIN(ROW(Tevékenység))+1),ROWS($B$3:B73)))&\" \"&CHAR(10)&(INDEX(Eredmény,SMALL(IF(Cél=$B$2,ROW(Eredmény)-MIN(ROW(Eredmény))+1),ROWS($B$3:B73))))&CHAR(10),\"\")","v":""},null,{"$f":"IFERROR(INDEX(Tevékenység,SMALL(IF(Cél=$D$2,ROW(Tevékenység)-MIN(ROW(Tevékenység))+1),ROWS($B$3:B73)))&CHAR(10),\"\")","v":""},null,{"$f":"IFERROR(INDEX(Tevékenység,SMALL(IF(Cél=$F$2,ROW(Tevékenység)-MIN(ROW(Tevékenység))+1),ROWS($B$3:B73)))&CHAR(10),\"\")","v":""},null,{"$f":"IFERROR(INDEX(Tevékenység,SMALL(IF(Cél=$H$2,ROW(Tevékenység)-MIN(ROW(Tevékenység))+1),ROWS($B$3:B73)))&CHAR(10),\"\")","v":""}]
[null,{"$f":"IFERROR(INDEX(Tevékenység,SMALL(IF(Cél=$B$2,ROW(Tevékenység)-MIN(ROW(Tevékenység))+1),ROWS($B$3:B74)))&\" \"&CHAR(10)&(INDEX(Eredmény,SMALL(IF(Cél=$B$2,ROW(Eredmény)-MIN(ROW(Eredmény))+1),ROWS($B$3:B74))))&CHAR(10),\"\")","v":""},null,{"$f":"IFERROR(INDEX(Tevékenység,SMALL(IF(Cél=$D$2,ROW(Tevékenység)-MIN(ROW(Tevékenység))+1),ROWS($B$3:B74)))&CHAR(10),\"\")","v":""},null,{"$f":"IFERROR(INDEX(Tevékenység,SMALL(IF(Cél=$F$2,ROW(Tevékenység)-MIN(ROW(Tevékenység))+1),ROWS($B$3:B74)))&CHAR(10),\"\")","v":""},null,{"$f":"IFERROR(INDEX(Tevékenység,SMALL(IF(Cél=$H$2,ROW(Tevékenység)-MIN(ROW(Tevékenység))+1),ROWS($B$3:B74)))&CHAR(10),\"\")","v":""}]
[null,{"$f":"IFERROR(INDEX(Tevékenység,SMALL(IF(Cél=$B$2,ROW(Tevékenység)-MIN(ROW(Tevékenység))+1),ROWS($B$3:B75)))&\" \"&CHAR(10)&(INDEX(Eredmény,SMALL(IF(Cél=$B$2,ROW(Eredmény)-MIN(ROW(Eredmény))+1),ROWS($B$3:B75))))&CHAR(10),\"\")","v":""},null,{"$f":"IFERROR(INDEX(Tevékenység,SMALL(IF(Cél=$D$2,ROW(Tevékenység)-MIN(ROW(Tevékenység))+1),ROWS($B$3:B75)))&CHAR(10),\"\")","v":""},null,{"$f":"IFERROR(INDEX(Tevékenység,SMALL(IF(Cél=$F$2,ROW(Tevékenység)-MIN(ROW(Tevékenység))+1),ROWS($B$3:B75)))&CHAR(10),\"\")","v":""},null,{"$f":"IFERROR(INDEX(Tevékenység,SMALL(IF(Cél=$H$2,ROW(Tevékenység)-MIN(ROW(Tevékenység))+1),ROWS($B$3:B75)))&CHAR(10),\"\")","v":""}]
[null,{"$f":"IFERROR(INDEX(Tevékenység,SMALL(IF(Cél=$B$2,ROW(Tevékenység)-MIN(ROW(Tevékenység))+1),ROWS($B$3:B76)))&\" \"&CHAR(10)&(INDEX(Eredmény,SMALL(IF(Cél=$B$2,ROW(Eredmény)-MIN(ROW(Eredmény))+1),ROWS($B$3:B76))))&CHAR(10),\"\")","v":""},null,{"$f":"IFERROR(INDEX(Tevékenység,SMALL(IF(Cél=$D$2,ROW(Tevékenység)-MIN(ROW(Tevékenység))+1),ROWS($B$3:B76)))&CHAR(10),\"\")","v":""},null,{"$f":"IFERROR(INDEX(Tevékenység,SMALL(IF(Cél=$F$2,ROW(Tevékenység)-MIN(ROW(Tevékenység))+1),ROWS($B$3:B76)))&CHAR(10),\"\")","v":""},null,{"$f":"IFERROR(INDEX(Tevékenység,SMALL(IF(Cél=$H$2,ROW(Tevékenység)-MIN(ROW(Tevékenység))+1),ROWS($B$3:B76)))&CHAR(10),\"\")","v":""}]
[null,{"$f":"IFERROR(INDEX(Tevékenység,SMALL(IF(Cél=$B$2,ROW(Tevékenység)-MIN(ROW(Tevékenység))+1),ROWS($B$3:B77)))&\" \"&CHAR(10)&(INDEX(Eredmény,SMALL(IF(Cél=$B$2,ROW(Eredmény)-MIN(ROW(Eredmény))+1),ROWS($B$3:B77))))&CHAR(10),\"\")","v":""},null,{"$f":"IFERROR(INDEX(Tevékenység,SMALL(IF(Cél=$D$2,ROW(Tevékenység)-MIN(ROW(Tevékenység))+1),ROWS($B$3:B77)))&CHAR(10),\"\")","v":""},null,{"$f":"IFERROR(INDEX(Tevékenység,SMALL(IF(Cél=$F$2,ROW(Tevékenység)-MIN(ROW(Tevékenység))+1),ROWS($B$3:B77)))&CHAR(10),\"\")","v":""},null,{"$f":"IFERROR(INDEX(Tevékenység,SMALL(IF(Cél=$H$2,ROW(Tevékenység)-MIN(ROW(Tevékenység))+1),ROWS($B$3:B77)))&CHAR(10),\"\")","v":""}]
[null,{"$f":"IFERROR(INDEX(Tevékenység,SMALL(IF(Cél=$B$2,ROW(Tevékenység)-MIN(ROW(Tevékenység))+1),ROWS($B$3:B78)))&\" \"&CHAR(10)&(INDEX(Eredmény,SMALL(IF(Cél=$B$2,ROW(Eredmény)-MIN(ROW(Eredmény))+1),ROWS($B$3:B78))))&CHAR(10),\"\")","v":""},null,{"$f":"IFERROR(INDEX(Tevékenység,SMALL(IF(Cél=$D$2,ROW(Tevékenység)-MIN(ROW(Tevékenység))+1),ROWS($B$3:B78)))&CHAR(10),\"\")","v":""},null,{"$f":"IFERROR(INDEX(Tevékenység,SMALL(IF(Cél=$F$2,ROW(Tevékenység)-MIN(ROW(Tevékenység))+1),ROWS($B$3:B78)))&CHAR(10),\"\")","v":""},null,{"$f":"IFERROR(INDEX(Tevékenység,SMALL(IF(Cél=$H$2,ROW(Tevékenység)-MIN(ROW(Tevékenység))+1),ROWS($B$3:B78)))&CHAR(10),\"\")","v":""}]
[null,{"$f":"IFERROR(INDEX(Tevékenység,SMALL(IF(Cél=$B$2,ROW(Tevékenység)-MIN(ROW(Tevékenység))+1),ROWS($B$3:B79)))&\" \"&CHAR(10)&(INDEX(Eredmény,SMALL(IF(Cél=$B$2,ROW(Eredmény)-MIN(ROW(Eredmény))+1),ROWS($B$3:B79))))&CHAR(10),\"\")","v":""},null,{"$f":"IFERROR(INDEX(Tevékenység,SMALL(IF(Cél=$D$2,ROW(Tevékenység)-MIN(ROW(Tevékenység))+1),ROWS($B$3:B79)))&CHAR(10),\"\")","v":""},null,{"$f":"IFERROR(INDEX(Tevékenység,SMALL(IF(Cél=$F$2,ROW(Tevékenység)-MIN(ROW(Tevékenység))+1),ROWS($B$3:B79)))&CHAR(10),\"\")","v":""},null,{"$f":"IFERROR(INDEX(Tevékenység,SMALL(IF(Cél=$H$2,ROW(Tevékenység)-MIN(ROW(Tevékenység))+1),ROWS($B$3:B79)))&CHAR(10),\"\")","v":""}]
[null,{"$f":"IFERROR(INDEX(Tevékenység,SMALL(IF(Cél=$B$2,ROW(Tevékenység)-MIN(ROW(Tevékenység))+1),ROWS($B$3:B80)))&\" \"&CHAR(10)&(INDEX(Eredmény,SMALL(IF(Cél=$B$2,ROW(Eredmény)-MIN(ROW(Eredmény))+1),ROWS($B$3:B80))))&CHAR(10),\"\")","v":""},null,{"$f":"IFERROR(INDEX(Tevékenység,SMALL(IF(Cél=$D$2,ROW(Tevékenység)-MIN(ROW(Tevékenység))+1),ROWS($B$3:B80)))&CHAR(10),\"\")","v":""},null,{"$f":"IFERROR(INDEX(Tevékenység,SMALL(IF(Cél=$F$2,ROW(Tevékenység)-MIN(ROW(Tevékenység))+1),ROWS($B$3:B80)))&CHAR(10),\"\")","v":""},null,{"$f":"IFERROR(INDEX(Tevékenység,SMALL(IF(Cél=$H$2,ROW(Tevékenység)-MIN(ROW(Tevékenység))+1),ROWS($B$3:B80)))&CHAR(10),\"\")","v":""}]
[null,{"$f":"IFERROR(INDEX(Tevékenység,SMALL(IF(Cél=$B$2,ROW(Tevékenység)-MIN(ROW(Tevékenység))+1),ROWS($B$3:B81)))&\" \"&CHAR(10)&(INDEX(Eredmény,SMALL(IF(Cél=$B$2,ROW(Eredmény)-MIN(ROW(Eredmény))+1),ROWS($B$3:B81))))&CHAR(10),\"\")","v":""},null,{"$f":"IFERROR(INDEX(Tevékenység,SMALL(IF(Cél=$D$2,ROW(Tevékenység)-MIN(ROW(Tevékenység))+1),ROWS($B$3:B81)))&CHAR(10),\"\")","v":""},null,{"$f":"IFERROR(INDEX(Tevékenység,SMALL(IF(Cél=$F$2,ROW(Tevékenység)-MIN(ROW(Tevékenység))+1),ROWS($B$3:B81)))&CHAR(10),\"\")","v":""},null,{"$f":"IFERROR(INDEX(Tevékenység,SMALL(IF(Cél=$H$2,ROW(Tevékenység)-MIN(ROW(Tevékenység))+1),ROWS($B$3:B81)))&CHAR(10),\"\")","v":""}]
[null,{"$f":"IFERROR(INDEX(Tevékenység,SMALL(IF(Cél=$B$2,ROW(Tevékenység)-MIN(ROW(Tevékenység))+1),ROWS($B$3:B82)))&\" \"&CHAR(10)&(INDEX(Eredmény,SMALL(IF(Cél=$B$2,ROW(Eredmény)-MIN(ROW(Eredmény))+1),ROWS($B$3:B82))))&CHAR(10),\"\")","v":""},null,{"$f":"IFERROR(INDEX(Tevékenység,SMALL(IF(Cél=$D$2,ROW(Tevékenység)-MIN(ROW(Tevékenység))+1),ROWS($B$3:B82)))&CHAR(10),\"\")","v":""},null,{"$f":"IFERROR(INDEX(Tevékenység,SMALL(IF(Cél=$F$2,ROW(Tevékenység)-MIN(ROW(Tevékenység))+1),ROWS($B$3:B82)))&CHAR(10),\"\")","v":""},null,{"$f":"IFERROR(INDEX(Tevékenység,SMALL(IF(Cél=$H$2,ROW(Tevékenység)-MIN(ROW(Tevékenység))+1),ROWS($B$3:B82)))&CHAR(10),\"\")","v":""}]
[null,{"$f":"IFERROR(INDEX(Tevékenység,SMALL(IF(Cél=$B$2,ROW(Tevékenység)-MIN(ROW(Tevékenység))+1),ROWS($B$3:B83)))&\" \"&CHAR(10)&(INDEX(Eredmény,SMALL(IF(Cél=$B$2,ROW(Eredmény)-MIN(ROW(Eredmény))+1),ROWS($B$3:B83))))&CHAR(10),\"\")","v":""},null,{"$f":"IFERROR(INDEX(Tevékenység,SMALL(IF(Cél=$D$2,ROW(Tevékenység)-MIN(ROW(Tevékenység))+1),ROWS($B$3:B83)))&CHAR(10),\"\")","v":""},null,{"$f":"IFERROR(INDEX(Tevékenység,SMALL(IF(Cél=$F$2,ROW(Tevékenység)-MIN(ROW(Tevékenység))+1),ROWS($B$3:B83)))&CHAR(10),\"\")","v":""},null,{"$f":"IFERROR(INDEX(Tevékenység,SMALL(IF(Cél=$H$2,ROW(Tevékenység)-MIN(ROW(Tevékenység))+1),ROWS($B$3:B83)))&CHAR(10),\"\")","v":""}]
[null,{"$f":"IFERROR(INDEX(Tevékenység,SMALL(IF(Cél=$B$2,ROW(Tevékenység)-MIN(ROW(Tevékenység))+1),ROWS($B$3:B84)))&\" \"&CHAR(10)&(INDEX(Eredmény,SMALL(IF(Cél=$B$2,ROW(Eredmény)-MIN(ROW(Eredmény))+1),ROWS($B$3:B84))))&CHAR(10),\"\")","v":""},null,{"$f":"IFERROR(INDEX(Tevékenység,SMALL(IF(Cél=$D$2,ROW(Tevékenység)-MIN(ROW(Tevékenység))+1),ROWS($B$3:B84)))&CHAR(10),\"\")","v":""},null,{"$f":"IFERROR(INDEX(Tevékenység,SMALL(IF(Cél=$F$2,ROW(Tevékenység)-MIN(ROW(Tevékenység))+1),ROWS($B$3:B84)))&CHAR(10),\"\")","v":""},null,{"$f":"IFERROR(INDEX(Tevékenység,SMALL(IF(Cél=$H$2,ROW(Tevékenység)-MIN(ROW(Tevékenység))+1),ROWS($B$3:B84)))&CHAR(10),\"\")","v":""}]
[null,{"$f":"IFERROR(INDEX(Tevékenység,SMALL(IF(Cél=$B$2,ROW(Tevékenység)-MIN(ROW(Tevékenység))+1),ROWS($B$3:B85)))&\" \"&CHAR(10)&(INDEX(Eredmény,SMALL(IF(Cél=$B$2,ROW(Eredmény)-MIN(ROW(Eredmény))+1),ROWS($B$3:B85))))&CHAR(10),\"\")","v":""},null,{"$f":"IFERROR(INDEX(Tevékenység,SMALL(IF(Cél=$D$2,ROW(Tevékenység)-MIN(ROW(Tevékenység))+1),ROWS($B$3:B85)))&CHAR(10),\"\")","v":""},null,{"$f":"IFERROR(INDEX(Tevékenység,SMALL(IF(Cél=$F$2,ROW(Tevékenység)-MIN(ROW(Tevékenység))+1),ROWS($B$3:B85)))&CHAR(10),\"\")","v":""},null,{"$f":"IFERROR(INDEX(Tevékenység,SMALL(IF(Cél=$H$2,ROW(Tevékenység)-MIN(ROW(Tevékenység))+1),ROWS($B$3:B85)))&CHAR(10),\"\")","v":""}]
[null,{"$f":"IFERROR(INDEX(Tevékenység,SMALL(IF(Cél=$B$2,ROW(Tevékenység)-MIN(ROW(Tevékenység))+1),ROWS($B$3:B86)))&\" \"&CHAR(10)&(INDEX(Eredmény,SMALL(IF(Cél=$B$2,ROW(Eredmény)-MIN(ROW(Eredmény))+1),ROWS($B$3:B86))))&CHAR(10),\"\")","v":""},null,{"$f":"IFERROR(INDEX(Tevékenység,SMALL(IF(Cél=$D$2,ROW(Tevékenység)-MIN(ROW(Tevékenység))+1),ROWS($B$3:B86)))&CHAR(10),\"\")","v":""},null,{"$f":"IFERROR(INDEX(Tevékenység,SMALL(IF(Cél=$F$2,ROW(Tevékenység)-MIN(ROW(Tevékenység))+1),ROWS($B$3:B86)))&CHAR(10),\"\")","v":""},null,{"$f":"IFERROR(INDEX(Tevékenység,SMALL(IF(Cél=$H$2,ROW(Tevékenység)-MIN(ROW(Tevékenység))+1),ROWS($B$3:B86)))&CHAR(10),\"\")","v":""}]
[null,{"$f":"IFERROR(INDEX(Tevékenység,SMALL(IF(Cél=$B$2,ROW(Tevékenység)-MIN(ROW(Tevékenység))+1),ROWS($B$3:B87)))&\" \"&CHAR(10)&(INDEX(Eredmény,SMALL(IF(Cél=$B$2,ROW(Eredmény)-MIN(ROW(Eredmény))+1),ROWS($B$3:B87))))&CHAR(10),\"\")","v":""},null,{"$f":"IFERROR(INDEX(Tevékenység,SMALL(IF(Cél=$D$2,ROW(Tevékenység)-MIN(ROW(Tevékenység))+1),ROWS($B$3:B87)))&CHAR(10),\"\")","v":""},null,{"$f":"IFERROR(INDEX(Tevékenység,SMALL(IF(Cél=$F$2,ROW(Tevékenység)-MIN(ROW(Tevékenység))+1),ROWS($B$3:B87)))&CHAR(10),\"\")","v":""},null,{"$f":"IFERROR(INDEX(Tevékenység,SMALL(IF(Cél=$H$2,ROW(Tevékenység)-MIN(ROW(Tevékenység))+1),ROWS($B$3:B87)))&CHAR(10),\"\")","v":""}]
[null,{"$f":"IFERROR(INDEX(Tevékenység,SMALL(IF(Cél=$B$2,ROW(Tevékenység)-MIN(ROW(Tevékenység))+1),ROWS($B$3:B88)))&\" \"&CHAR(10)&(INDEX(Eredmény,SMALL(IF(Cél=$B$2,ROW(Eredmény)-MIN(ROW(Eredmény))+1),ROWS($B$3:B88))))&CHAR(10),\"\")","v":""},null,{"$f":"IFERROR(INDEX(Tevékenység,SMALL(IF(Cél=$D$2,ROW(Tevékenység)-MIN(ROW(Tevékenység))+1),ROWS($B$3:B88)))&CHAR(10),\"\")","v":""},null,{"$f":"IFERROR(INDEX(Tevékenység,SMALL(IF(Cél=$F$2,ROW(Tevékenység)-MIN(ROW(Tevékenység))+1),ROWS($B$3:B88)))&CHAR(10),\"\")","v":""},null,{"$f":"IFERROR(INDEX(Tevékenység,SMALL(IF(Cél=$H$2,ROW(Tevékenység)-MIN(ROW(Tevékenység))+1),ROWS($B$3:B88)))&CHAR(10),\"\")","v":""}]
[null,{"$f":"IFERROR(INDEX(Tevékenység,SMALL(IF(Cél=$B$2,ROW(Tevékenység)-MIN(ROW(Tevékenység))+1),ROWS($B$3:B89)))&\" \"&CHAR(10)&(INDEX(Eredmény,SMALL(IF(Cél=$B$2,ROW(Eredmény)-MIN(ROW(Eredmény))+1),ROWS($B$3:B89))))&CHAR(10),\"\")","v":""},null,{"$f":"IFERROR(INDEX(Tevékenység,SMALL(IF(Cél=$D$2,ROW(Tevékenység)-MIN(ROW(Tevékenység))+1),ROWS($B$3:B89)))&CHAR(10),\"\")","v":""},null,{"$f":"IFERROR(INDEX(Tevékenység,SMALL(IF(Cél=$F$2,ROW(Tevékenység)-MIN(ROW(Tevékenység))+1),ROWS($B$3:B89)))&CHAR(10),\"\")","v":""},null,{"$f":"IFERROR(INDEX(Tevékenység,SMALL(IF(Cél=$H$2,ROW(Tevékenység)-MIN(ROW(Tevékenység))+1),ROWS($B$3:B89)))&CHAR(10),\"\")","v":""}]
[null,{"$f":"IFERROR(INDEX(Tevékenység,SMALL(IF(Cél=$B$2,ROW(Tevékenység)-MIN(ROW(Tevékenység))+1),ROWS($B$3:B90)))&\" \"&CHAR(10)&(INDEX(Eredmény,SMALL(IF(Cél=$B$2,ROW(Eredmény)-MIN(ROW(Eredmény))+1),ROWS($B$3:B90))))&CHAR(10),\"\")","v":""},null,{"$f":"IFERROR(INDEX(Tevékenység,SMALL(IF(Cél=$D$2,ROW(Tevékenység)-MIN(ROW(Tevékenység))+1),ROWS($B$3:B90)))&CHAR(10),\"\")","v":""},null,{"$f":"IFERROR(INDEX(Tevékenység,SMALL(IF(Cél=$F$2,ROW(Tevékenység)-MIN(ROW(Tevékenység))+1),ROWS($B$3:B90)))&CHAR(10),\"\")","v":""},null,{"$f":"IFERROR(INDEX(Tevékenység,SMALL(IF(Cél=$H$2,ROW(Tevékenység)-MIN(ROW(Tevékenység))+1),ROWS($B$3:B90)))&CHAR(10),\"\")","v":""}]
[null,{"$f":"IFERROR(INDEX(Tevékenység,SMALL(IF(Cél=$B$2,ROW(Tevékenység)-MIN(ROW(Tevékenység))+1),ROWS($B$3:B91)))&\" \"&CHAR(10)&(INDEX(Eredmény,SMALL(IF(Cél=$B$2,ROW(Eredmény)-MIN(ROW(Eredmény))+1),ROWS($B$3:B91))))&CHAR(10),\"\")","v":""},null,{"$f":"IFERROR(INDEX(Tevékenység,SMALL(IF(Cél=$D$2,ROW(Tevékenység)-MIN(ROW(Tevékenység))+1),ROWS($B$3:B91)))&CHAR(10),\"\")","v":""},null,{"$f":"IFERROR(INDEX(Tevékenység,SMALL(IF(Cél=$F$2,ROW(Tevékenység)-MIN(ROW(Tevékenység))+1),ROWS($B$3:B91)))&CHAR(10),\"\")","v":""},null,{"$f":"IFERROR(INDEX(Tevékenység,SMALL(IF(Cél=$H$2,ROW(Tevékenység)-MIN(ROW(Tevékenység))+1),ROWS($B$3:B91)))&CHAR(10),\"\")","v":""}]
[null,{"$f":"IFERROR(INDEX(Tevékenység,SMALL(IF(Cél=$B$2,ROW(Tevékenység)-MIN(ROW(Tevékenység))+1),ROWS($B$3:B92)))&\" \"&CHAR(10)&(INDEX(Eredmény,SMALL(IF(Cél=$B$2,ROW(Eredmény)-MIN(ROW(Eredmény))+1),ROWS($B$3:B92))))&CHAR(10),\"\")","v":""},null,{"$f":"IFERROR(INDEX(Tevékenység,SMALL(IF(Cél=$D$2,ROW(Tevékenység)-MIN(ROW(Tevékenység))+1),ROWS($B$3:B92)))&CHAR(10),\"\")","v":""},null,{"$f":"IFERROR(INDEX(Tevékenység,SMALL(IF(Cél=$F$2,ROW(Tevékenység)-MIN(ROW(Tevékenység))+1),ROWS($B$3:B92)))&CHAR(10),\"\")","v":""},null,{"$f":"IFERROR(INDEX(Tevékenység,SMALL(IF(Cél=$H$2,ROW(Tevékenység)-MIN(ROW(Tevékenység))+1),ROWS($B$3:B92)))&CHAR(10),\"\")","v":""}]
[null,{"$f":"IFERROR(INDEX(Tevékenység,SMALL(IF(Cél=$B$2,ROW(Tevékenység)-MIN(ROW(Tevékenység))+1),ROWS($B$3:B93)))&\" \"&CHAR(10)&(INDEX(Eredmény,SMALL(IF(Cél=$B$2,ROW(Eredmény)-MIN(ROW(Eredmény))+1),ROWS($B$3:B93))))&CHAR(10),\"\")","v":""},null,{"$f":"IFERROR(INDEX(Tevékenység,SMALL(IF(Cél=$D$2,ROW(Tevékenység)-MIN(ROW(Tevékenység))+1),ROWS($B$3:B93)))&CHAR(10),\"\")","v":""},null,{"$f":"IFERROR(INDEX(Tevékenység,SMALL(IF(Cél=$F$2,ROW(Tevékenység)-MIN(ROW(Tevékenység))+1),ROWS($B$3:B93)))&CHAR(10),\"\")","v":""},null,{"$f":"IFERROR(INDEX(Tevékenység,SMALL(IF(Cél=$H$2,ROW(Tevékenység)-MIN(ROW(Tevékenység))+1),ROWS($B$3:B93)))&CHAR(10),\"\")","v":""}]
[null,{"$f":"IFERROR(INDEX(Tevékenység,SMALL(IF(Cél=$B$2,ROW(Tevékenység)-MIN(ROW(Tevékenység))+1),ROWS($B$3:B94)))&\" \"&CHAR(10)&(INDEX(Eredmény,SMALL(IF(Cél=$B$2,ROW(Eredmény)-MIN(ROW(Eredmény))+1),ROWS($B$3:B94))))&CHAR(10),\"\")","v":""},null,{"$f":"IFERROR(INDEX(Tevékenység,SMALL(IF(Cél=$D$2,ROW(Tevékenység)-MIN(ROW(Tevékenység))+1),ROWS($B$3:B94)))&CHAR(10),\"\")","v":""},null,{"$f":"IFERROR(INDEX(Tevékenység,SMALL(IF(Cél=$F$2,ROW(Tevékenység)-MIN(ROW(Tevékenység))+1),ROWS($B$3:B94)))&CHAR(10),\"\")","v":""},null,{"$f":"IFERROR(INDEX(Tevékenység,SMALL(IF(Cél=$H$2,ROW(Tevékenység)-MIN(ROW(Tevékenység))+1),ROWS($B$3:B94)))&CHAR(10),\"\")","v":""}]
[null,{"$f":"IFERROR(INDEX(Tevékenység,SMALL(IF(Cél=$B$2,ROW(Tevékenység)-MIN(ROW(Tevékenység))+1),ROWS($B$3:B95)))&\" \"&CHAR(10)&(INDEX(Eredmény,SMALL(IF(Cél=$B$2,ROW(Eredmény)-MIN(ROW(Eredmény))+1),ROWS($B$3:B95))))&CHAR(10),\"\")","v":""},null,{"$f":"IFERROR(INDEX(Tevékenység,SMALL(IF(Cél=$D$2,ROW(Tevékenység)-MIN(ROW(Tevékenység))+1),ROWS($B$3:B95)))&CHAR(10),\"\")","v":""},null,{"$f":"IFERROR(INDEX(Tevékenység,SMALL(IF(Cél=$F$2,ROW(Tevékenység)-MIN(ROW(Tevékenység))+1),ROWS($B$3:B95)))&CHAR(10),\"\")","v":""},null,{"$f":"IFERROR(INDEX(Tevékenység,SMALL(IF(Cél=$H$2,ROW(Tevékenység)-MIN(ROW(Tevékenység))+1),ROWS($B$3:B95)))&CHAR(10),\"\")","v":""}]
[null,{"$f":"IFERROR(INDEX(Tevékenység,SMALL(IF(Cél=$B$2,ROW(Tevékenység)-MIN(ROW(Tevékenység))+1),ROWS($B$3:B96)))&\" \"&CHAR(10)&(INDEX(Eredmény,SMALL(IF(Cél=$B$2,ROW(Eredmény)-MIN(ROW(Eredmény))+1),ROWS($B$3:B96))))&CHAR(10),\"\")","v":""},null,{"$f":"IFERROR(INDEX(Tevékenység,SMALL(IF(Cél=$D$2,ROW(Tevékenység)-MIN(ROW(Tevékenység))+1),ROWS($B$3:B96)))&CHAR(10),\"\")","v":""},null,{"$f":"IFERROR(INDEX(Tevékenység,SMALL(IF(Cél=$F$2,ROW(Tevékenység)-MIN(ROW(Tevékenység))+1),ROWS($B$3:B96)))&CHAR(10),\"\")","v":""},null,{"$f":"IFERROR(INDEX(Tevékenység,SMALL(IF(Cél=$H$2,ROW(Tevékenység)-MIN(ROW(Tevékenység))+1),ROWS($B$3:B96)))&CHAR(10),\"\")","v":""}]
[null,{"$f":"IFERROR(INDEX(Tevékenység,SMALL(IF(Cél=$B$2,ROW(Tevékenység)-MIN(ROW(Tevékenység))+1),ROWS($B$3:B97)))&\" \"&CHAR(10)&(INDEX(Eredmény,SMALL(IF(Cél=$B$2,ROW(Eredmény)-MIN(ROW(Eredmény))+1),ROWS($B$3:B97))))&CHAR(10),\"\")","v":""},null,{"$f":"IFERROR(INDEX(Tevékenység,SMALL(IF(Cél=$D$2,ROW(Tevékenység)-MIN(ROW(Tevékenység))+1),ROWS($B$3:B97)))&CHAR(10),\"\")","v":""},null,{"$f":"IFERROR(INDEX(Tevékenység,SMALL(IF(Cél=$F$2,ROW(Tevékenység)-MIN(ROW(Tevékenység))+1),ROWS($B$3:B97)))&CHAR(10),\"\")","v":""},null,{"$f":"IFERROR(INDEX(Tevékenység,SMALL(IF(Cél=$H$2,ROW(Tevékenység)-MIN(ROW(Tevékenység))+1),ROWS($B$3:B97)))&CHAR(10),\"\")","v":""}]
[null,{"$f":"IFERROR(INDEX(Tevékenység,SMALL(IF(Cél=$B$2,ROW(Tevékenység)-MIN(ROW(Tevékenység))+1),ROWS($B$3:B98)))&\" \"&CHAR(10)&(INDEX(Eredmény,SMALL(IF(Cél=$B$2,ROW(Eredmény)-MIN(ROW(Eredmény))+1),ROWS($B$3:B98))))&CHAR(10),\"\")","v":""},null,{"$f":"IFERROR(INDEX(Tevékenység,SMALL(IF(Cél=$D$2,ROW(Tevékenység)-MIN(ROW(Tevékenység))+1),ROWS($B$3:B98)))&CHAR(10),\"\")","v":""},null,{"$f":"IFERROR(INDEX(Tevékenység,SMALL(IF(Cél=$F$2,ROW(Tevékenység)-MIN(ROW(Tevékenység))+1),ROWS($B$3:B98)))&CHAR(10),\"\")","v":""},null,{"$f":"IFERROR(INDEX(Tevékenység,SMALL(IF(Cél=$H$2,ROW(Tevékenység)-MIN(ROW(Tevékenység))+1),ROWS($B$3:B98)))&CHAR(10),\"\")","v":""}]
[null,{"$f":"IFERROR(INDEX(Tevékenység,SMALL(IF(Cél=$B$2,ROW(Tevékenység)-MIN(ROW(Tevékenység))+1),ROWS($B$3:B99)))&\" \"&CHAR(10)&(INDEX(Eredmény,SMALL(IF(Cél=$B$2,ROW(Eredmény)-MIN(ROW(Eredmény))+1),ROWS($B$3:B99))))&CHAR(10),\"\")","v":""},null,{"$f":"IFERROR(INDEX(Tevékenység,SMALL(IF(Cél=$D$2,ROW(Tevékenység)-MIN(ROW(Tevékenység))+1),ROWS($B$3:B99)))&CHAR(10),\"\")","v":""},null,{"$f":"IFERROR(INDEX(Tevékenység,SMALL(IF(Cél=$F$2,ROW(Tevékenység)-MIN(ROW(Tevékenység))+1),ROWS($B$3:B99)))&CHAR(10),\"\")","v":""},null,{"$f":"IFERROR(INDEX(Tevékenység,SMALL(IF(Cél=$H$2,ROW(Tevékenység)-MIN(ROW(Tevékenység))+1),ROWS($B$3:B99)))&CHAR(10),\"\")","v":""}]
[null,{"$f":"IFERROR(INDEX(Tevékenység,SMALL(IF(Cél=$B$2,ROW(Tevékenység)-MIN(ROW(Tevékenység))+1),ROWS($B$3:B100)))&\" \"&CHAR(10)&(INDEX(Eredmény,SMALL(IF(Cél=$B$2,ROW(Eredmény)-MIN(ROW(Eredmény))+1),ROWS($B$3:B100))))&CHAR(10),\"\")","v":""},null,{"$f":"IFERROR(INDEX(Tevékenység,SMALL(IF(Cél=$D$2,ROW(Tevékenység)-MIN(ROW(Tevékenység))+1),ROWS($B$3:B100)))&CHAR(10),\"\")","v":""},null,{"$f":"IFERROR(INDEX(Tevékenység,SMALL(IF(Cél=$F$2,ROW(Tevékenység)-MIN(ROW(Tevékenység))+1),ROWS($B$3:B100)))&CHAR(10),\"\")","v":""},null,{"$f":"IFERROR(INDEX(Tevékenység,SMALL(IF(Cél=$H$2,ROW(Tevékenység)-MIN(ROW(Tevékenység))+1),ROWS($B$3:B100)))&CHAR(10),\"\")","v":""}]

{"sheet":"Névjegy","index":2,"n_rows":6,"n_cols":1,"rows_kept":6}
["A munkafüzet ismertetése"]
["Képernyőolvasók útmutatása"]
["Ebben a munkafüzetben 3 munkalap található. \n\nÜtemtervadatok\nAgile-ütemterv\nNévjegy\n\nAz egyes munkalapok utasításai az „A” oszlopban találhatók az A1 cellával kezdődően. Rejtett formázású szöveggel írtuk őket. Minden lépés végigvezeti az adott sorra vonatkozó információkon. Ettől kifejezetten eltérő utasítás hiányában a további lépések az A2, A3 stb. cellákban folytatódnak. Az utasítás szövegében például szerepelhet a következő: „lépjen az A6 cellába” a következő lépésért. \n\nA rejtett szöveg nem lesz nyomtatva.\n\nHa bármelyik munkalapról el szeretné távolítani ezeket az utasításokat, egyszerűen törölje az A oszlopot.\n"]
["A munkafüzet ismertetése"]
["A mérföldkőadatokat az Ütemtervadatok munkalapon kell megadni.  Ügyeljen rá, hogy először prioritás, majd mérföldkő alapján szűrjön, hogy csökkenő sorrendben láthassa a Kész, az Aktuális, a Közeljövőbeli és a Jövőbeli nézeteket, így a legmagasabb prioritású elemek kerülnek felülre. Az Agile-ütemterv munkalapon szereplő ütemterv automatikusan frissül.\n"]
["Ezen a munkalapon ez az utolsó utasítás."]